Workbook

Sheet Form
A1: Other | B1: App. Date | C1: Name | D1: Surname | E1: Pasaport No. | F1: Date of birth | G1: Note of stutus | H1: Price $ | I1: Paid $ | J1: Route | K1: Unpaid $ | M1: =MID(CELL("filename"),FIND("]",CELL("filename"))+1,LEN(CELL("filename"))-FIND("]",CELL("filename"))) -> Main of June | O1: TOTAL
M3: DONE | O3: Total amount | S3: Route | T3: Total Unpaid | W3: =Noblanks(J2:J499) ->  | X3: Route | Y3: Count of Route
M4: CANCELLED | O4: =SUM(H2:H69) -> 0 | S4: =IF(ISERROR(INDEX($W$3:$W$70,MATCH(0,COUNTIF($S$3:S3,$W$3:$W$69),0))),"",INDEX($W$3:$W$69,MATCH(0,COUNTIF($S$3:S3,$W$3:$W$69),0))) ->  | T4: =IF(S4<>"",SUMPRODUCT(--($J$2:$J$69=S4),$K$2:$K$69),"") ->  | W4: =Noblanks(U6:U499) ->  | X4: MISTAKE IN DOB | Y4: =COUNTIF(J2:J70,"MISTAKE IN DOB") -> 0
M5: REFUSED | S5: =IF(ISERROR(INDEX($W$3:$W$70,MATCH(0,COUNTIF($S$3:S4,$W$3:$W$69),0))),"",INDEX($W$3:$W$69,MATCH(0,COUNTIF($S$3:S4,$W$3:$W$69),0))) ->  | T5: =IF(S5<>"",SUMPRODUCT(--($J$2:$J$69=S5),$K$2:$K$69),"") ->  | W5: =Noblanks(U7:U500) -> 
M6: MISTAKE | O6: Total Paid | Q6: Difrent amount | S6: =IF(ISERROR(INDEX($W$3:$W$70,MATCH(0,COUNTIF($S$3:S5,$W$3:$W$69),0))),"",INDEX($W$3:$W$69,MATCH(0,COUNTIF($S$3:S5,$W$3:$W$69),0))) ->  | T6: =IF(S6<>"",SUMPRODUCT(--($J$2:$J$69=S6),$K$2:$K$69),"") ->  | U6: =IF(K2="","",J2) ->  | W6: =Noblanks(U8:U501) -> 
M7: GREEN PASS. | O7: =SUM(I2:I67) -> 0 | Q7: =O4-(O7+T23) -> 0 | S7: =IF(ISERROR(INDEX($W$3:$W$70,MATCH(0,COUNTIF($S$3:S6,$W$3:$W$69),0))),"",INDEX($W$3:$W$69,MATCH(0,COUNTIF($S$3:S6,$W$3:$W$69),0))) ->  | T7: =IF(S7<>"",SUMPRODUCT(--($J$2:$J$69=S7),$K$2:$K$69),"") ->  | W7: =Noblanks(U9:U502) -> 
S8: =IF(ISERROR(INDEX($W$3:$W$70,MATCH(0,COUNTIF($S$3:S7,$W$3:$W$69),0))),"",INDEX($W$3:$W$69,MATCH(0,COUNTIF($S$3:S7,$W$3:$W$69),0))) ->  | T8: =IF(S8<>"",SUMPRODUCT(--($J$2:$J$69=S8),$K$2:$K$69),"") ->  | W8: =Noblanks(U10:U503) -> 
O9: Total UnPaid | Q9: =COUNT(B:B) -> 0 | S9: =IF(ISERROR(INDEX($W$3:$W$70,MATCH(0,COUNTIF($S$3:S8,$W$3:$W$69),0))),"",INDEX($W$3:$W$69,MATCH(0,COUNTIF($S$3:S8,$W$3:$W$69),0))) ->  | T9: =IF(S9<>"",SUMPRODUCT(--($J$2:$J$69=S9),$K$2:$K$69),"") ->  | W9: =Noblanks(U11:U504) -> 
O10: =SUM(T4:T15) -> 0 | S10: =IF(ISERROR(INDEX($W$3:$W$70,MATCH(0,COUNTIF($S$3:S9,$W$3:$W$69),0))),"",INDEX($W$3:$W$69,MATCH(0,COUNTIF($S$3:S9,$W$3:$W$69),0))) ->  | T10: =IF(S10<>"",SUMPRODUCT(--($J$2:$J$69=S10),$K$2:$K$69),"") ->  | W10: =Noblanks(U12:U505) -> 
S11: =IF(ISERROR(INDEX($W$3:$W$70,MATCH(0,COUNTIF($S$3:S10,$W$3:$W$69),0))),"",INDEX($W$3:$W$69,MATCH(0,COUNTIF($S$3:S10,$W$3:$W$69),0))) ->  | T11: =IF(S11<>"",SUMPRODUCT(--($J$2:$J$69=S11),$K$2:$K$69),"") ->  | W11: =Noblanks(U13:U506) -> 
S12: =IF(ISERROR(INDEX($W$3:$W$70,MATCH(0,COUNTIF($S$3:S11,$W$3:$W$69),0))),"",INDEX($W$3:$W$69,MATCH(0,COUNTIF($S$3:S11,$W$3:$W$69),0))) ->  | T12: =IF(S12<>"",SUMPRODUCT(--($J$2:$J$69=S12),$K$2:$K$69),"") ->  | W12: =Noblanks(U14:U507) -> 
S13: =IF(ISERROR(INDEX($W$3:$W$70,MATCH(0,COUNTIF($S$3:S12,$W$3:$W$69),0))),"",INDEX($W$3:$W$69,MATCH(0,COUNTIF($S$3:S12,$W$3:$W$69),0))) ->  | W13: =Noblanks(U15:U508) -> 
S14: =IF(ISERROR(INDEX($W$3:$W$70,MATCH(0,COUNTIF($S$3:S13,$W$3:$W$69),0))),"",INDEX($W$3:$W$69,MATCH(0,COUNTIF($S$3:S13,$W$3:$W$69),0))) ->  | W14: =Noblanks(U16:U509) -> 
S15: =IF(ISERROR(INDEX($W$3:$W$70,MATCH(0,COUNTIF($S$3:S14,$W$3:$W$69),0))),"",INDEX($W$3:$W$69,MATCH(0,COUNTIF($S$3:S14,$W$3:$W$69),0))) ->  | W15: =Noblanks(U17:U510) -> 
S16: =IF(ISERROR(INDEX($W$3:$W$70,MATCH(0,COUNTIF($S$3:S15,$W$3:$W$69),0))),"",INDEX($W$3:$W$69,MATCH(0,COUNTIF($S$3:S15,$W$3:$W$69),0))) ->  | V16: =Noblanks(X13:X15) ->  | W16: =Noblanks(U18:U511) -> 
S17: =IF(ISERROR(INDEX($W$3:$W$70,MATCH(0,COUNTIF($S$3:S16,$W$3:$W$69),0))),"",INDEX($W$3:$W$69,MATCH(0,COUNTIF($S$3:S16,$W$3:$W$69),0))) ->  | V17: =Noblanks(X14:X16) ->  | W17: =Noblanks(U19:U512) -> 
S18: =IF(ISERROR(INDEX($W$3:$W$70,MATCH(0,COUNTIF($S$3:S17,$W$3:$W$69),0))),"",INDEX($W$3:$W$69,MATCH(0,COUNTIF($S$3:S17,$W$3:$W$69),0))) ->  | W18: =Noblanks(U20:U513) -> 
S19: =IF(ISERROR(INDEX($W$3:$W$70,MATCH(0,COUNTIF($S$3:S18,$W$3:$W$69),0))),"",INDEX($W$3:$W$69,MATCH(0,COUNTIF($S$3:S18,$W$3:$W$69),0))) ->  | W19: =Noblanks(U21:U514) -> 
S20: =IF(ISERROR(INDEX($W$3:$W$70,MATCH(0,COUNTIF($S$3:S19,$W$3:$W$69),0))),"",INDEX($W$3:$W$69,MATCH(0,COUNTIF($S$3:S19,$W$3:$W$69),0))) ->  | W20: =Noblanks(U22:U515) -> 
S21: =IF(ISERROR(INDEX($W$3:$W$70,MATCH(0,COUNTIF($S$3:S20,$W$3:$W$69),0))),"",INDEX($W$3:$W$69,MATCH(0,COUNTIF($S$3:S20,$W$3:$W$69),0))) ->  | W21: =Noblanks(U23:U516) -> 
S22: =IF(ISERROR(INDEX($W$3:$W$70,MATCH(0,COUNTIF($S$3:S21,$W$3:$W$69),0))),"",INDEX($W$3:$W$69,MATCH(0,COUNTIF($S$3:S21,$W$3:$W$69),0))) ->  | W22: =Noblanks(U24:U517) ->  | Y22: =IFERROR(INDEX($J$2:$J$499,SMALL(IF($J$2:$J$499<>"",ROW($J$1:$J$499)-ROW($J$2)+1,""),ROWS($Y$21:Y22))),"") -> 
S23: Total | T23: =SUM(T4:T22) -> 0 | W23: =Noblanks(U25:U518) ->  | Y23: =IFERROR(INDEX($J$2:$J$499,SMALL(IF($J$2:$J$499<>"",ROW($J$1:$J$499)-ROW($J$2)+1,""),ROWS($Y$21:Y23))),"") -> 
W24: =Noblanks(U26:U519) ->  | Y24: =IFERROR(INDEX($J$2:$J$499,SMALL(IF($J$2:$J$499<>"",ROW($J$1:$J$499)-ROW($J$2)+1,""),ROWS($Y$21:Y24))),"") -> 
W25: =Noblanks(U27:U520) ->  | Y25: =IFERROR(INDEX($J$2:$J$499,SMALL(IF($J$2:$J$499<>"",ROW($J$1:$J$499)-ROW($J$2)+1,""),ROWS($Y$21:Y25))),"") -> 
W26: =Noblanks(U28:U521) -> 
W27: =Noblanks(U29:U522) -> 
W28: =Noblanks(U30:U523) -> 
W29: =Noblanks(U31:U524) -> 
W30: =Noblanks(U32:U525) -> 
W31: =Noblanks(U33:U526) -> 
W32: =Noblanks(U34:U527) -> 
W33: =Noblanks(U35:U528) -> 
W34: =Noblanks(U36:U529) -> 
W35: =Noblanks(U37:U530) -> 
W36: =Noblanks(U38:U531) -> 
W37: =Noblanks(U39:U532) -> 
W38: =Noblanks(U40:U533) -> 
W39: =Noblanks(U41:U534) -> 
W40: =Noblanks(U42:U535) -> 
W41: =Noblanks(U43:U536) -> 
W42: =Noblanks(U44:U537) -> 
W43: =Noblanks(U45:U538) -> 
W44: =Noblanks(U46:U539) -> 
W45: =Noblanks(U47:U540) -> 
W46: =Noblanks(U48:U541) -> 
W47: =Noblanks(U49:U542) -> 
W48: =Noblanks(U50:U543) -> 
W49: =Noblanks(U51:U544) -> 
W50: =Noblanks(U52:U545) -> 
W51: =Noblanks(U53:U546) -> 
W52: =Noblanks(U54:U547) -> 
W53: =Noblanks(U55:U548) -> 
W54: =Noblanks(U56:U549) -> 
W55: =Noblanks(U57:U550) -> 
W56: =Noblanks(U58:U551) -> 
W57: =Noblanks(U59:U552) -> 
W58: =Noblanks(U60:U553) -> 
W59: =Noblanks(U61:U554) -> 
W60: =Noblanks(U62:U555) -> 
W61: =Noblanks(U63:U556) -> 
W62: =Noblanks(U64:U557) -> 
W63: =Noblanks(U65:U558) -> 
W64: =Noblanks(U66:U559) -> 
W65: =Noblanks(U67:U560) -> 
W66: =Noblanks(U68:U561) -> 
W67: =Noblanks(U69:U562) -> 
W68: =Noblanks(U70:U563) -> 
W69: =Noblanks(U71:U564) -> 
U70: =IF(K66="","",J66) ->  | W70: =Noblanks(U72:U565) -> 
W71: =Noblanks(U73:U566) -> 
W72: =Noblanks(U74:U567) -> 
W73: =Noblanks(U75:U568) -> 
W74: =Noblanks(U76:U569) -> 
W75: =Noblanks(U77:U570) -> 
W76: =Noblanks(U78:U571) -> 
W77: =Noblanks(U79:U572) -> 
W78: =Noblanks(U80:U573) -> 
W79: =Noblanks(U81:U574) -> 
W80: =Noblanks(U82:U575) -> 
W81: =Noblanks(U83:U576) -> 
W82: =Noblanks(U84:U577) -> 
W83: =Noblanks(U85:U578) -> 
W84: =Noblanks(U86:U579) -> 
W85: =Noblanks(U87:U580) -> 
W86: =Noblanks(U88:U581) -> 
W87: =Noblanks(J86:J583) -> 
W88: =Noblanks(J87:J584) -> 
W89: =Noblanks(J88:J585) -> 
W90: =Noblanks(J89:J586) -> 
W91: =Noblanks(J90:J587) -> 
W92: =Noblanks(J91:J588) -> 
W93: =Noblanks(J92:J589) -> 
W94: =Noblanks(J93:J590) -> 
W95: =Noblanks(J94:J591) -> 
W96: =Noblanks(J95:J592) -> 
W97: =Noblanks(J96:J593) -> 
W98: =Noblanks(J97:J594) -> 
W99: =Noblanks(J98:J595) -> 
W100: =Noblanks(J99:J596) -> 
W101: =Noblanks(J100:J597) -> 
W102: =Noblanks(J101:J598) -> 
W103: =Noblanks(J102:J599) -> 
W104: =Noblanks(J103:J600) -> 
W105: =Noblanks(J104:J601) -> 
W106: =Noblanks(J105:J602) -> 
W107: =Noblanks(J106:J603) -> 
W108: =Noblanks(J107:J604) -> 
W109: =Noblanks(J108:J605) -> 
W110: =Noblanks(J109:J606) -> 
W111: =Noblanks(J110:J607) -> 
W112: =Noblanks(J111:J608) -> 
W113: =Noblanks(J112:J609) -> 
W114: =Noblanks(J113:J610) -> 
W115: =Noblanks(J114:J611) -> 
W116: =Noblanks(J115:J612) -> 
W117: =Noblanks(J116:J613) -> 
W118: =Noblanks(J117:J614) -> 
W119: =Noblanks(J118:J615) -> 
W120: =Noblanks(J119:J616) -> 
W121: =Noblanks(J120:J617) -> 
W122: =Noblanks(J121:J618) -> 
W123: =Noblanks(J122:J619) -> 
W124: =Noblanks(J123:J620) -> 
W125: =Noblanks(J124:J621) -> 
W126: =Noblanks(J125:J622) -> 
W127: =Noblanks(J126:J623) -> 
W128: =Noblanks(J127:J624) -> 
W129: =Noblanks(J128:J625) -> 
W130: =Noblanks(J129:J626) -> 
W131: =Noblanks(J130:J627) -> 
W132: =Noblanks(J131:J628) -> 
W133: =Noblanks(J132:J629) -> 
W134: =Noblanks(J133:J630) -> 
W135: =Noblanks(J134:J631) -> 
W136: =Noblanks(J135:J632) -> 
W137: =Noblanks(J136:J633) -> 
W138: =Noblanks(J137:J634) -> 
W139: =Noblanks(J138:J635) -> 
W140: =Noblanks(J139:J636) -> 
W141: =Noblanks(J140:J637) -> 
W142: =Noblanks(J141:J638) -> 
W143: =Noblanks(J142:J639) -> 
W144: =Noblanks(J143:J640) -> 
W145: =Noblanks(J144:J641) -> 
W146: =Noblanks(J145:J642) -> 
W147: =Noblanks(J146:J643) -> 
W148: =Noblanks(J147:J644) -> 
W149: =Noblanks(J148:J645) -> 
W150: =Noblanks(J149:J646) -> 
W151: =Noblanks(J150:J647) -> 
W152: =Noblanks(J151:J648) -> 
W153: =Noblanks(J152:J649) -> 
W154: =Noblanks(J153:J650) -> 
W155: =Noblanks(J154:J651) -> 
W156: =Noblanks(J155:J652) -> 
W157: =Noblanks(J156:J653) -> 
W158: =Noblanks(J157:J654) -> 
W159: =Noblanks(J158:J655) -> 
W160: =Noblanks(J159:J656) -> 
W161: =Noblanks(J160:J657) -> 
W162: =Noblanks(J161:J658) -> 
W163: =Noblanks(J162:J659) -> 
W164: =Noblanks(J163:J660) -> 
W165: =Noblanks(J164:J661) -> 
W166: =Noblanks(J165:J662) -> 
W167: =Noblanks(J166:J663) -> 
W168: =Noblanks(J167:J664) -> 
W169: =Noblanks(J168:J665) -> 
W170: =Noblanks(J169:J666) -> 
W171: =Noblanks(J170:J667) -> 
W172: =Noblanks(J171:J668) -> 
W173: =Noblanks(J172:J669) -> 
W174: =Noblanks(J173:J670) -> 
W175: =Noblanks(J174:J671) -> 
W176: =Noblanks(J175:J672) -> 
W177: =Noblanks(J176:J673) -> 
W178: =Noblanks(J177:J674) -> 
W179: =Noblanks(J178:J675) -> 
W180: =Noblanks(J179:J676) -> 
W181: =Noblanks(J180:J677) -> 
W182: =Noblanks(J181:J678) -> 
W183: =Noblanks(J182:J679) -> 
W184: =Noblanks(J183:J680) -> 
W185: =Noblanks(J184:J681) -> 
W186: =Noblanks(J185:J682) -> 
W187: =Noblanks(J186:J683) -> 
W188: =Noblanks(J187:J684) -> 
W189: =Noblanks(J188:J685) -> 
W190: =Noblanks(J189:J686) -> 
W191: =Noblanks(J190:J687) -> 
W192: =Noblanks(J191:J688) -> 
W193: =Noblanks(J192:J689) -> 
W194: =Noblanks(J193:J690) -> 
W195: =Noblanks(J194:J691) -> 
W196: =Noblanks(J195:J692) -> 
W197: =Noblanks(J196:J693) -> 
W198: =Noblanks(J197:J694) -> 

Sheet Main of June
O1: Official time | P1: Main of June | XFD1: =IF($A$1="عطلة رسمية","False",IF($A$1="دوام رسمى","True","AAA")) -> AAA
B2: App. Date | C2: Name | D2: Surname | E2: Pasaport No. | F2: Date of birth | I2: Date | J2: No. of App | K2: Total of Paid $ | L2: Total of Paid $ | M2: Total of Unpaid $ | O2: Official holiday | P2: Form
B3: 2019-04-24T15:00:35.577 | C3: KHAYRI ATEEYAH ALMAHDI | D3: ALGHOUL | E3: RGZ10H6R | F3: 1973-05-08 | I3: =IF(P3="","",P3) -> 1st June | J3: =IF(I3="","",INDIRECT("'"&$I3&"'!$q9")) -> 76 | K3: =IF(I3="","",INDIRECT("'"&$I3&"'!$o4")) -> 6997 | L3: =IF(I3="","",INDIRECT("'"&$I3&"'!$o7")) -> 5760 | M3: =IF(I3="","",INDIRECT("'"&$I3&"'!$T23")) -> 1590 | O3: Other | P3: 1st June
B4: 2019-04-28T12:39:44.370 | C4: ALZUBAYR FARAJ HASAN | D4: ALMUZOUGHI | E4: LPC37G85 | F4: 1993-11-21 | I4: =IF(P4="","",P4) -> 2019-07-16 | J4: =IF(I4="","",INDIRECT("'"&TEXT($I4,"dd-mm-yyyy")&"'!$q9")) -> 2 | K4: =IF(I4="","",INDIRECT("'"&TEXT($I4,"dd-mm-yyyy")&"'!$o4")) -> 170 | L4: =IF(I4="","",INDIRECT("'"&TEXT($I4,"dd-mm-yyyy")&"'!$o7")) -> 150 | M4: =IF(I4="","",INDIRECT("'"&TEXT($I4,"dd-mm-yyyy")&"'!$T23")) -> 100 | P4: 2019-07-16
B5: 2019-04-28T13:13:30.707 | C5: ZAKRIA | D5: ALMOZGI | E5: GL35GN54 | F5: 1991-12-02 | I5: =IF(P5="","",P5) ->  | J5: =IF(I5="","",INDIRECT("'"&TEXT($I5,"dd-mm-yyyy")&"'!$q9")) ->  | K5: =IF(I5="","",INDIRECT("'"&TEXT($I5,"dd-mm-yyyy")&"'!$o4")) ->  | L5: =IF(I5="","",INDIRECT("'"&TEXT($I5,"dd-mm-yyyy")&"'!$o7")) ->  | M5: =IF(I5="","",INDIRECT("'"&TEXT($I5,"dd-mm-yyyy")&"'!$T23")) -> 
B6: 2019-04-29T13:36:16.330 | C6: OMAR | D6: ELMOHASHSH | E6: NCJRH93G | F6: 1990-09-28
B7: 2019-04-29T13:42:27.433 | C7: HIND | D7: OSMAN | E7: C5NR6798 | F7: 1994-05-01
B8: 2019-05-02T16:57:01.433 | C8: MOHAMED | D8: ALBIJOU | E8: RJH6LLCZ | F8: 1991-04-24
B9: 2019-05-02T17:04:28.613 | C9: SANA | D9: ELHASSI | E9: HCJ6L6PK | F9: 1991-09-29
B10: 2019-05-08T12:55:30.870 | C10: AISHA | D10: ALSAKLOUL | E10: NPJ3YZH4 | F10: 1979-05-25
B11: 2019-05-08T13:03:32.563 | C11: ESLAM | D11: ALSAKLOUL | E11: NPNKR1RZ | F11: 1990-01-15
B12: 2019-05-12T15:21:28.803 | C12: ESLAM | D12: ALSAKLOUL | E12: -NPNKR1RZ | F12: 1996-01-15
B13: 2019-05-16T13:48:08.413 | C13: MUHANAD | D13: ELBURKI | E13: J7G3JY60 | F13: 1984-01-21
B14: 2019-05-16T13:53:24.300 | C14: ENAS | D14: IKJAM | E14: R4HHCPY4 | F14: 1985-02-06
B15: 2019-05-19T13:26:46.853 | C15: LAILA | D15: BEN ISMAIL | E15: K2P1N4N8 | F15: 1966-04-06
B16: 2019-05-19T13:31:45.700 | C16: YASMIN | D16: EL SAHLI | E16: PCPY0PG9 | F16: 2005-05-15
B17: 2019-05-19T13:35:47.647 | C17: YASMIN | D17: EL SAHLI | E17: PCR55NJP | F17: 2002-02-27
B18: 2019-05-21T16:16:50.417 | C18: YASMIN | D18: AGILA | E18: P81G5CK1 | F18: 1978-01-05
B19: 2019-05-21T16:21:20.403 | C19: YASMIN | D19: EJBALI | E19: C771KFP5 | F19: 1983-08-06
B20: 2019-05-22T13:16:38.180 | C20: YASMIN | D20: KRAIM | E20: F9K1J6G5 | F20: 1977-04-21
B21: 2019-05-23T12:28:57.527 | C21: RAMADHAN | D21: GARGOM | E21: 000C6236LL1 | F21: 1983-10-01
B22: 2019-05-28T17:03:35.457 | C22: ABTISAM | D22: HOUSSEIN | E22: HZLY9H3G | F22: 1985-04-08
B23: 2019-05-29T18:56:52.767 | C23: ABOBAKER | D23: ALSHADLI | E23: NGR095HY | F23: 1976-02-20
B24: 2019-05-30T13:15:29.767 | C24: KHALED | D24: BUSHIBA | E24: ++P0Y3KC9H | F24: 1991-04-24
B25: 2019-05-30T13:18:57.317 | C25: NAWARA | D25: ATLOUBAH | E25: NG9FP4YL | F25: 1981-10-06
B26: 2019-06-02T18:39:18.367 | C26: ALLAELDIN | D26: ABDELHALIM | E26: 924679 | F26: 1995-05-05
B27: 2019-06-09T12:00:50.073 | C27: ADEL | D27: ALABYADH | E27: RG2KYP15 | F27: 1975-03-01
B28: 2019-06-09T13:19:06.617 | C28: MOHAMED | D28: ALBIJOU | E28: +RJH6LLCZ | F28: 1971-10-12
B29: 2019-06-09T13:42:41.223 | C29: ALMAHDI | D29: ALBAHLOUL | E29: P28YYP83 | F29: 1975-04-01
B30: 2019-06-09T15:32:46.743 | C30: KHADIJA | D30: AGILA | E30: HN058N7F | F30: 1976-10-04
B31: 2019-06-10T13:58:24.787 | C31: MUNIR | D31: ELAGOURI | E31: FPFGG8YP | F31: 1982-06-10
B32: 2019-06-10T14:15:21.727 | C32: ABDULBASIT | D32: ALTAHIR | E32: LCLRC5F0 | F32: 1990-11-22
B33: 2019-06-10T14:32:41.430 | C33: OMAR | D33: ALTAHIR | E33: HP52ZG24 | F33: 1987-06-03
B34: 2019-06-10T16:05:09.850 | C34: OSAMA | D34: BELGASEM | E34: QY84LPJY | F34: 1994-02-06
B35: 2019-06-10T16:08:07.367 | C35: NESRIN | D35: MOHAMED | E35: GY8Y7L1N | F35: 1955-12-25
B36: 2019-06-10T16:45:00.743 | C36: OMAR | D36: ELHMRRI | E36: HYY6NGL2 | F36: 1994-08-02
B37: 2019-06-10T16:50:13.033 | C37: GHALIYAH | D37: ALHAMRI | E37: CKN315PH | F37: 1959-01-01
B38: 2019-06-11T12:02:25.957 | C38: BRAA | D38: ELMANGOSH | E38: +C0881J9P | F38: 1990-08-19
B39: 2019-06-11T12:06:47.277 | C39: ZAINAB | D39: ELSADEG | E39: L0KPKR13 | F39: 1968-09-04
B40: 2019-06-11T12:24:45.843 | C40: ASEIDA | D40: AHNESH | E40: JZ3PC669 | F40: 1974-06-08
B41: 2019-06-11T14:08:21.950 | C41: NASSER | D41: BENHALLOUM | E41: CGJJFN87 | F41: 2007-05-14
B42: 2019-06-11T14:12:07.113 | C42: ABDULLAH | D42: BINHALLOUM | E42: HRC82HFJ | F42: 1990-11-22
B43: 2019-06-12T13:06:19.563 | C43: ALAADIN | D43: ALSHARKSI | E43: LL2JC154 | F43: 1966-01-01
B44: 2019-06-12T13:11:53.757 | C44: AHLAM | D44: ABDALLAH | E44: LL00C60N | F44: 1976-05-25
B45: 2019-06-12T13:15:23.813 | C45: ALAA | D45: ALSHARKASI | E45: L22L1RCP | F45: 1990-09-24
B46: 2019-06-13T15:33:52.910 | C46: OMAR | D46: ELHMRRI | E46: +HYY6NGL2 | F46: 1965-08-28
B47: 2019-06-13T15:39:21.060 | C47: LAYLAY | D47: BOUSHEEHAH | E47: HYZG20YC | F47: 1992-01-04
B48: 2019-06-17T12:12:51.307 | C48: SALAH EDDIN | D48: SHAHOMI | E48: GY1JRP7P | F48: 1995-10-06
B49: 2019-06-17T12:17:44.810 | C49: MARWA | D49: ASHTITI | E49: GY42C07F | F49: 1984-01-11
B50: 2019-06-17T12:51:47.780 | C50: ZAHRAH | D50: BOURAWI | E50: P7RLF9J0 | F50: 1996-12-26
B51: 2019-06-17T12:56:59.610 | C51: ABDELRAHIM | D51: ALSHATEETI | E51: GR3P9FZK | F51: 1984-03-12
B52: 2019-06-17T13:02:00.187 | C52: AHMED | D52: ALSHATEETI | E52: FRF2YK0C | F52: 1990-01-21
B53: 2019-06-18T12:24:59.867 | C53: IBRAHIM | D53: ELGAHANI | E53: H07H239J | F53: 1996-02-13
B54: 2019-06-18T12:28:44.510 | C54: NADAY | D54: ALARJ | E54: CFJ2L289 | F54: 1963-01-01
B55: 2019-06-18T17:22:15.387 | C55: OMAR | D55: ALBISHARI | E55: LN0G4RC3 | F55: 2006-07-31
B56: 2019-06-18T17:54:11.480 | C56: SHIMA | D56: ALBASHARI | E56: HF7F2F8N | F56: 2004-01-20
B57: 2019-06-20T11:42:46.477 | C57: MARWA | D57: ELMAHDI | E57: CK5R6GCC | F57: 1970-01-01
B58: 2019-06-20T12:12:00.130 | C58: BALGEIS | D58: BADI | E58: GN575LJ5 | F58: 1971-02-06
B59: 2019-06-20T12:18:10.100 | C59: MIRA | D59: GLESSA | E59: GN3FZG0P | F59: 2002-09-04
B60: 2019-06-20T12:27:13.480 | C60: HANI | D60: GLESSA | E60: GN755ZZJ | F60: 2004-01-11
B61: 2019-06-20T14:38:24.320 | C61: YAHIA | D61: ELFALLAH | E61: JKP7CGP2 | F61: 1979-10-06
B62: 2019-06-20T14:43:13.117 | C62: ABTESAM | D62: BADER | E62: C9127619 | F62: 1989-03-22
B63: 2019-06-20T14:46:41.963 | C63: NOOR | D63: ALFALLAH | E63: C8RRLPH0 | F63: 1959-08-28
B64: 2019-06-20T14:53:30.030 | C64: ISLAM | D64: ALFALLAH | E64: C8LCJ63Y | F64: 1958-01-01
B65: 2019-06-20T16:10:06.907 | C65: AHMED | D65: BEDA | E65: H9941GK0 | F65: 1991-02-12
B66: 2019-06-20T16:26:14.793 | C66: ESRAA | D66: GINI | E66: H973R816 | F66: 1996-12-22
B67: 2019-06-20T18:11:23.413 | C67: ABDELJAUL | D67: ELAYTIE | E67: FRNFL9ZK | F67: 1966-11-21
B68: 2019-06-20T18:14:02.773 | C68: SALMA | D68: ELZEWI | E68: FRYCP0P3 | F68: 1973-10-25
B69: 2019-06-20T18:17:26.260 | C69: MARWA | D69: ELSAYTIE | E69: FRN4NYCF | F69: 1980-09-28 | I69: =IF(P69="","",P69) ->  | J69: =IF(I69="","",INDIRECT("'"&TEXT($I69,"dd-mm-yyyy")&"'!$q9")) ->  | K69: =IF(I69="","",INDIRECT("'"&TEXT($I69,"dd-mm-yyyy")&"'!$o4")) ->  | L69: =IF(I69="","",INDIRECT("'"&TEXT($I69,"dd-mm-yyyy")&"'!$o7")) ->  | M69: =IF(I69="","",INDIRECT("'"&TEXT($I69,"dd-mm-yyyy")&"'!$T23")) -> 
B70: 2019-06-20T18:23:05.277 | C70: ALI | D70: ALSAEITI | E70: GG019KY0 | F70: 1987-09-02
B71: 2019-06-20T19:09:13.237 | C71: KHADEEJAH | D71: ALZAWI | E71: F1KY0LK0 | F71: 1994-08-06
B72: 2019-06-20T19:17:53.300 | C72: AIDAH | D72: BEIDA | E72: G15PZZ2F | F72: 2001-07-10 | L72: =IF(I72="","",SUM('1st June'!I:I)) ->  | M72: =IF(J72="","",SUM('1st June'!K:K)) -> 
B73: =IF('1st June'!B72="","",'1st June'!B72) -> 2019-06-20T20:01:13.625 | C73: =IF('1st June'!C72="","",'1st June'!C72) -> KHADEEJAH | D73: =IF('1st June'!D72="","",'1st June'!D72) -> ALZAWI | E73: =IF('1st June'!E72="","",'1st June'!E72) -> F1KY0LK3 | F73: =IF('1st June'!F72="","",'1st June'!F72) -> 2008-06-13 | L73: =SUM(L3:L72) -> 5910 | M73: =SUM(M3:M72) -> 1690
B74: =IF('1st June'!B73="","",'1st June'!B73) -> 2019-06-20T20:09:53.690 | C74: =IF('1st June'!C73="","",'1st June'!C73) -> AIDAH | D74: =IF('1st June'!D73="","",'1st June'!D73) -> BEIDA | E74: =IF('1st June'!E73="","",'1st June'!E73) -> G15PZZ2F | F74: 2001-07-11
B75: =IF('1st June'!B74="","",'1st June'!B74) -> 2019-06-20T20:18:33.755 | C75: =IF('1st June'!C74="","",'1st June'!C74) -> KHADEEJAH | D75: =IF('1st June'!D74="","",'1st June'!D74) -> ALZAWI | E75: =IF('1st June'!E74="","",'1st June'!E74) -> F1KY0LK4 | F75: =IF('1st June'!F74="","",'1st June'!F74) -> 2022-04-21
B76: =IF('1st June'!B75="","",'1st June'!B75) -> 2019-06-20T20:27:13.820 | C76: =IF('1st June'!C75="","",'1st June'!C75) -> AIDAH | D76: =IF('1st June'!D75="","",'1st June'!D75) -> BEIDA | E76: =IF('1st June'!E75="","",'1st June'!E75) -> G15PZZ2F | F76: 2001-07-12
B77: =IF('1st June'!B76="","",'1st June'!B76) -> 2019-06-20T20:35:53.885 | C77: =IF('1st June'!C76="","",'1st June'!C76) -> KHADEEJAH | D77: =IF('1st June'!D76="","",'1st June'!D76) -> ALZAWI | E77: =IF('1st June'!E76="","",'1st June'!E76) -> F1KY0LK5 | F77: =IF('1st June'!F76="","",'1st June'!F76) -> 2036-02-27
B78: =IF('1st June'!B77="","",'1st June'!B77) -> 2019-06-20T20:44:33.950 | C78: =IF('1st June'!C77="","",'1st June'!C77) -> AIDAH | D78: =IF('1st June'!D77="","",'1st June'!D77) -> BEIDA | E78: =IF('1st June'!E77="","",'1st June'!E77) -> G15PZZ2F | F78: =IF('1st June'!F77="","",'1st June'!F77) -> 2043-01-31
B79: =IF('1st June'!B78="","",'1st June'!B78) ->  | C79: =IF('1st June'!C78="","",'1st June'!C78) ->  | D79: =IF('1st June'!D78="","",'1st June'!D78) ->  | E79: =IF('1st June'!E78="","",'1st June'!E78) ->  | F79: =IF('1st June'!F78="","",'1st June'!F78) -> 
B80: =IF('1st June'!B79="","",'1st June'!B79) ->  | C80: =IF('1st June'!C79="","",'1st June'!C79) ->  | D80: =IF('1st June'!D79="","",'1st June'!D79) ->  | E80: =IF('1st June'!E79="","",'1st June'!E79) ->  | F80: =IF('1st June'!F79="","",'1st June'!F79) -> 
B81: =IF('1st June'!B80="","",'1st June'!B80) ->  | C81: =IF('1st June'!C80="","",'1st June'!C80) ->  | D81: =IF('1st June'!D80="","",'1st June'!D80) ->  | E81: =IF('1st June'!E80="","",'1st June'!E80) ->  | F81: =IF('1st June'!F80="","",'1st June'!F80) -> 
B82: =IF('1st June'!B81="","",'1st June'!B81) ->  | C82: =IF('1st June'!C81="","",'1st June'!C81) ->  | D82: =IF('1st June'!D81="","",'1st June'!D81) ->  | E82: =IF('1st June'!E81="","",'1st June'!E81) ->  | F82: =IF('1st June'!F81="","",'1st June'!F81) -> 
B83: =IF('1st June'!B82="","",'1st June'!B82) ->  | C83: =IF('1st June'!C82="","",'1st June'!C82) ->  | D83: =IF('1st June'!D82="","",'1st June'!D82) ->  | E83: =IF('1st June'!E82="","",'1st June'!E82) ->  | F83: =IF('1st June'!F82="","",'1st June'!F82) -> 
B84: =IF('1st June'!B83="","",'1st June'!B83) ->  | C84: =IF('1st June'!C83="","",'1st June'!C83) ->  | D84: =IF('1st June'!D83="","",'1st June'!D83) ->  | E84: =IF('1st June'!E83="","",'1st June'!E83) ->  | F84: =IF('1st June'!F83="","",'1st June'!F83) -> 
B85: =IF('1st June'!B84="","",'1st June'!B84) ->  | C85: =IF('1st June'!C84="","",'1st June'!C84) ->  | D85: =IF('1st June'!D84="","",'1st June'!D84) ->  | E85: =IF('1st June'!E84="","",'1st June'!E84) ->  | F85: =IF('1st June'!F84="","",'1st June'!F84) -> 
B86: =IF('1st June'!B85="","",'1st June'!B85) ->  | C86: =IF('1st June'!C85="","",'1st June'!C85) ->  | D86: =IF('1st June'!D85="","",'1st June'!D85) ->  | E86: =IF('1st June'!E85="","",'1st June'!E85) ->  | F86: =IF('1st June'!F85="","",'1st June'!F85) -> 
B87: =IF('1st June'!B86="","",'1st June'!B86) ->  | C87: =IF('1st June'!C86="","",'1st June'!C86) ->  | D87: =IF('1st June'!D86="","",'1st June'!D86) ->  | E87: =IF('1st June'!E86="","",'1st June'!E86) ->  | F87: =IF('1st June'!F86="","",'1st June'!F86) -> 
B88: =IF('1st June'!B87="","",'1st June'!B87) ->  | C88: =IF('1st June'!C87="","",'1st June'!C87) ->  | D88: =IF('1st June'!D87="","",'1st June'!D87) ->  | E88: =IF('1st June'!E87="","",'1st June'!E87) ->  | F88: =IF('1st June'!F87="","",'1st June'!F87) -> 
B89: =IF('1st June'!B88="","",'1st June'!B88) ->  | C89: =IF('1st June'!C88="","",'1st June'!C88) ->  | D89: =IF('1st June'!D88="","",'1st June'!D88) ->  | E89: =IF('1st June'!E88="","",'1st June'!E88) ->  | F89: =IF('1st June'!F88="","",'1st June'!F88) -> 
B90: =IF('1st June'!B89="","",'1st June'!B89) ->  | C90: =IF('1st June'!C89="","",'1st June'!C89) ->  | D90: =IF('1st June'!D89="","",'1st June'!D89) ->  | E90: =IF('1st June'!E89="","",'1st June'!E89) ->  | F90: =IF('1st June'!F89="","",'1st June'!F89) -> 
B91: =IF('1st June'!B90="","",'1st June'!B90) ->  | C91: =IF('1st June'!C90="","",'1st June'!C90) ->  | D91: =IF('1st June'!D90="","",'1st June'!D90) ->  | E91: =IF('1st June'!E90="","",'1st June'!E90) ->  | F91: =IF('1st June'!F90="","",'1st June'!F90) -> 
B92: =IF('1st June'!B91="","",'1st June'!B91) ->  | C92: =IF('1st June'!C91="","",'1st June'!C91) ->  | D92: =IF('1st June'!D91="","",'1st June'!D91) ->  | E92: =IF('1st June'!E91="","",'1st June'!E91) ->  | F92: =IF('1st June'!F91="","",'1st June'!F91) -> 
B93: =IF('1st June'!B92="","",'1st June'!B92) ->  | C93: =IF('1st June'!C92="","",'1st June'!C92) ->  | D93: =IF('1st June'!D92="","",'1st June'!D92) ->  | E93: =IF('1st June'!E92="","",'1st June'!E92) ->  | F93: =IF('1st June'!F92="","",'1st June'!F92) -> 
B94: =IF('1st June'!B93="","",'1st June'!B93) ->  | C94: =IF('1st June'!C93="","",'1st June'!C93) ->  | D94: =IF('1st June'!D93="","",'1st June'!D93) ->  | E94: =IF('1st June'!E93="","",'1st June'!E93) ->  | F94: =IF('1st June'!F93="","",'1st June'!F93) -> 
B95: =IF('1st June'!B94="","",'1st June'!B94) ->  | C95: =IF('1st June'!C94="","",'1st June'!C94) ->  | D95: =IF('1st June'!D94="","",'1st June'!D94) ->  | E95: =IF('1st June'!E94="","",'1st June'!E94) ->  | F95: =IF('1st June'!F94="","",'1st June'!F94) -> 
B96: =IF('1st June'!B95="","",'1st June'!B95) ->  | C96: =IF('1st June'!C95="","",'1st June'!C95) ->  | D96: =IF('1st June'!D95="","",'1st June'!D95) ->  | E96: =IF('1st June'!E95="","",'1st June'!E95) ->  | F96: =IF('1st June'!F95="","",'1st June'!F95) -> 
B97: =IF('1st June'!B96="","",'1st June'!B96) ->  | C97: =IF('1st June'!C96="","",'1st June'!C96) ->  | D97: =IF('1st June'!D96="","",'1st June'!D96) ->  | E97: =IF('1st June'!E96="","",'1st June'!E96) ->  | F97: =IF('1st June'!F96="","",'1st June'!F96) -> 
B98: =IF('1st June'!B97="","",'1st June'!B97) ->  | C98: =IF('1st June'!C97="","",'1st June'!C97) ->  | D98: =IF('1st June'!D97="","",'1st June'!D97) ->  | E98: =IF('1st June'!E97="","",'1st June'!E97) ->  | F98: =IF('1st June'!F97="","",'1st June'!F97) -> 
B99: =IF('1st June'!B98="","",'1st June'!B98) ->  | C99: =IF('1st June'!C98="","",'1st June'!C98) ->  | D99: =IF('1st June'!D98="","",'1st June'!D98) ->  | E99: =IF('1st June'!E98="","",'1st June'!E98) ->  | F99: =IF('1st June'!F98="","",'1st June'!F98) -> 
B100: =IF('1st June'!B99="","",'1st June'!B99) ->  | C100: =IF('1st June'!C99="","",'1st June'!C99) ->  | D100: =IF('1st June'!D99="","",'1st June'!D99) ->  | E100: =IF('1st June'!E99="","",'1st June'!E99) ->  | F100: =IF('1st June'!F99="","",'1st June'!F99) -> 
B101: =IF('1st June'!B100="","",'1st June'!B100) ->  | C101: =IF('1st June'!C100="","",'1st June'!C100) ->  | D101: =IF('1st June'!D100="","",'1st June'!D100) ->  | E101: =IF('1st June'!E100="","",'1st June'!E100) ->  | F101: =IF('1st June'!F100="","",'1st June'!F100) -> 
B102: =IF('1st June'!B101="","",'1st June'!B101) ->  | C102: =IF('1st June'!C101="","",'1st June'!C101) ->  | D102: =IF('1st June'!D101="","",'1st June'!D101) ->  | E102: =IF('1st June'!E101="","",'1st June'!E101) ->  | F102: =IF('1st June'!F101="","",'1st June'!F101) -> 
B103: =IF('1st June'!B102="","",'1st June'!B102) ->  | C103: =IF('1st June'!C102="","",'1st June'!C102) ->  | D103: =IF('1st June'!D102="","",'1st June'!D102) ->  | E103: =IF('1st June'!E102="","",'1st June'!E102) ->  | F103: =IF('1st June'!F102="","",'1st June'!F102) -> 
B104: =IF('1st June'!B103="","",'1st June'!B103) ->  | C104: =IF('1st June'!C103="","",'1st June'!C103) ->  | D104: =IF('1st June'!D103="","",'1st June'!D103) ->  | E104: =IF('1st June'!E103="","",'1st June'!E103) ->  | F104: =IF('1st June'!F103="","",'1st June'!F103) -> 
B105: =IF('1st June'!B104="","",'1st June'!B104) ->  | C105: =IF('1st June'!C104="","",'1st June'!C104) ->  | D105: =IF('1st June'!D104="","",'1st June'!D104) ->  | E105: =IF('1st June'!E104="","",'1st June'!E104) ->  | F105: =IF('1st June'!F104="","",'1st June'!F104) -> 
B106: =IF('1st June'!B105="","",'1st June'!B105) ->  | C106: =IF('1st June'!C105="","",'1st June'!C105) ->  | D106: =IF('1st June'!D105="","",'1st June'!D105) ->  | E106: =IF('1st June'!E105="","",'1st June'!E105) ->  | F106: =IF('1st June'!F105="","",'1st June'!F105) -> 
B107: =IF('1st June'!B106="","",'1st June'!B106) ->  | C107: =IF('1st June'!C106="","",'1st June'!C106) ->  | D107: =IF('1st June'!D106="","",'1st June'!D106) ->  | E107: =IF('1st June'!E106="","",'1st June'!E106) ->  | F107: =IF('1st June'!F106="","",'1st June'!F106) -> 
B108: =IF('1st June'!B107="","",'1st June'!B107) ->  | C108: =IF('1st June'!C107="","",'1st June'!C107) ->  | D108: =IF('1st June'!D107="","",'1st June'!D107) ->  | E108: =IF('1st June'!E107="","",'1st June'!E107) ->  | F108: =IF('1st June'!F107="","",'1st June'!F107) -> 
B109: =IF('1st June'!B108="","",'1st June'!B108) ->  | C109: =IF('1st June'!C108="","",'1st June'!C108) ->  | D109: =IF('1st June'!D108="","",'1st June'!D108) ->  | E109: =IF('1st June'!E108="","",'1st June'!E108) ->  | F109: =IF('1st June'!F108="","",'1st June'!F108) -> 
B110: =IF('1st June'!B109="","",'1st June'!B109) ->  | C110: =IF('1st June'!C109="","",'1st June'!C109) ->  | D110: =IF('1st June'!D109="","",'1st June'!D109) ->  | E110: =IF('1st June'!E109="","",'1st June'!E109) ->  | F110: =IF('1st June'!F109="","",'1st June'!F109) -> 
B111: =IF('1st June'!B110="","",'1st June'!B110) ->  | C111: =IF('1st June'!C110="","",'1st June'!C110) ->  | D111: =IF('1st June'!D110="","",'1st June'!D110) ->  | E111: =IF('1st June'!E110="","",'1st June'!E110) ->  | F111: =IF('1st June'!F110="","",'1st June'!F110) -> 
B112: =IF('1st June'!B111="","",'1st June'!B111) ->  | C112: =IF('1st June'!C111="","",'1st June'!C111) ->  | D112: =IF('1st June'!D111="","",'1st June'!D111) ->  | E112: =IF('1st June'!E111="","",'1st June'!E111) ->  | F112: =IF('1st June'!F111="","",'1st June'!F111) -> 
B113: =IF('1st June'!B112="","",'1st June'!B112) ->  | C113: =IF('1st June'!C112="","",'1st June'!C112) ->  | D113: =IF('1st June'!D112="","",'1st June'!D112) ->  | E113: =IF('1st June'!E112="","",'1st June'!E112) ->  | F113: =IF('1st June'!F112="","",'1st June'!F112) -> 
B114: =IF('1st June'!B113="","",'1st June'!B113) ->  | C114: =IF('1st June'!C113="","",'1st June'!C113) ->  | D114: =IF('1st June'!D113="","",'1st June'!D113) ->  | E114: =IF('1st June'!E113="","",'1st June'!E113) ->  | F114: =IF('1st June'!F113="","",'1st June'!F113) -> 
B115: =IF('1st June'!B114="","",'1st June'!B114) ->  | C115: =IF('1st June'!C114="","",'1st June'!C114) ->  | D115: =IF('1st June'!D114="","",'1st June'!D114) ->  | E115: =IF('1st June'!E114="","",'1st June'!E114) ->  | F115: =IF('1st June'!F114="","",'1st June'!F114) -> 
B116: =IF('1st June'!B115="","",'1st June'!B115) ->  | C116: =IF('1st June'!C115="","",'1st June'!C115) ->  | D116: =IF('1st June'!D115="","",'1st June'!D115) ->  | E116: =IF('1st June'!E115="","",'1st June'!E115) ->  | F116: =IF('1st June'!F115="","",'1st June'!F115) -> 
B117: =IF('1st June'!B116="","",'1st June'!B116) ->  | C117: =IF('1st June'!C116="","",'1st June'!C116) ->  | D117: =IF('1st June'!D116="","",'1st June'!D116) ->  | E117: =IF('1st June'!E116="","",'1st June'!E116) ->  | F117: =IF('1st June'!F116="","",'1st June'!F116) -> 
B118: =IF('1st June'!B117="","",'1st June'!B117) ->  | C118: =IF('1st June'!C117="","",'1st June'!C117) ->  | D118: =IF('1st June'!D117="","",'1st June'!D117) ->  | E118: =IF('1st June'!E117="","",'1st June'!E117) ->  | F118: =IF('1st June'!F117="","",'1st June'!F117) -> 
B119: =IF('1st June'!B118="","",'1st June'!B118) ->  | C119: =IF('1st June'!C118="","",'1st June'!C118) ->  | D119: =IF('1st June'!D118="","",'1st June'!D118) ->  | E119: =IF('1st June'!E118="","",'1st June'!E118) ->  | F119: =IF('1st June'!F118="","",'1st June'!F118) -> 
B120: =IF('1st June'!B119="","",'1st June'!B119) ->  | C120: =IF('1st June'!C119="","",'1st June'!C119) ->  | D120: =IF('1st June'!D119="","",'1st June'!D119) ->  | E120: =IF('1st June'!E119="","",'1st June'!E119) ->  | F120: =IF('1st June'!F119="","",'1st June'!F119) -> 
B121: =IF('1st June'!B120="","",'1st June'!B120) ->  | C121: =IF('1st June'!C120="","",'1st June'!C120) ->  | D121: =IF('1st June'!D120="","",'1st June'!D120) ->  | E121: =IF('1st June'!E120="","",'1st June'!E120) ->  | F121: =IF('1st June'!F120="","",'1st June'!F120) -> 
B122: =IF('1st June'!B121="","",'1st June'!B121) ->  | C122: =IF('1st June'!C121="","",'1st June'!C121) ->  | D122: =IF('1st June'!D121="","",'1st June'!D121) ->  | E122: =IF('1st June'!E121="","",'1st June'!E121) ->  | F122: =IF('1st June'!F121="","",'1st June'!F121) -> 
B123: =IF('1st June'!B122="","",'1st June'!B122) ->  | C123: =IF('1st June'!C122="","",'1st June'!C122) ->  | D123: =IF('1st June'!D122="","",'1st June'!D122) ->  | E123: =IF('1st June'!E122="","",'1st June'!E122) ->  | F123: =IF('1st June'!F122="","",'1st June'!F122) -> 
B124: =IF('1st June'!B123="","",'1st June'!B123) ->  | C124: =IF('1st June'!C123="","",'1st June'!C123) ->  | D124: =IF('1st June'!D123="","",'1st June'!D123) ->  | E124: =IF('1st June'!E123="","",'1st June'!E123) ->  | F124: =IF('1st June'!F123="","",'1st June'!F123) -> 
B125: =IF('1st June'!B124="","",'1st June'!B124) ->  | C125: =IF('1st June'!C124="","",'1st June'!C124) ->  | D125: =IF('1st June'!D124="","",'1st June'!D124) ->  | E125: =IF('1st June'!E124="","",'1st June'!E124) ->  | F125: =IF('1st June'!F124="","",'1st June'!F124) -> 
B126: =IF('1st June'!B125="","",'1st June'!B125) ->  | C126: =IF('1st June'!C125="","",'1st June'!C125) ->  | D126: =IF('1st June'!D125="","",'1st June'!D125) ->  | E126: =IF('1st June'!E125="","",'1st June'!E125) ->  | F126: =IF('1st June'!F125="","",'1st June'!F125) -> 
B127: =IF('1st June'!B126="","",'1st June'!B126) ->  | C127: =IF('1st June'!C126="","",'1st June'!C126) ->  | D127: =IF('1st June'!D126="","",'1st June'!D126) ->  | E127: =IF('1st June'!E126="","",'1st June'!E126) ->  | F127: =IF('1st June'!F126="","",'1st June'!F126) -> 
B128: =IF('1st June'!B127="","",'1st June'!B127) ->  | C128: =IF('1st June'!C127="","",'1st June'!C127) ->  | D128: =IF('1st June'!D127="","",'1st June'!D127) ->  | E128: =IF('1st June'!E127="","",'1st June'!E127) ->  | F128: =IF('1st June'!F127="","",'1st June'!F127) -> 
B129: =IF('1st June'!B128="","",'1st June'!B128) ->  | C129: =IF('1st June'!C128="","",'1st June'!C128) ->  | D129: =IF('1st June'!D128="","",'1st June'!D128) ->  | E129: =IF('1st June'!E128="","",'1st June'!E128) ->  | F129: =IF('1st June'!F128="","",'1st June'!F128) -> 
B130: =IF('1st June'!B129="","",'1st June'!B129) ->  | C130: =IF('1st June'!C129="","",'1st June'!C129) ->  | D130: =IF('1st June'!D129="","",'1st June'!D129) ->  | E130: =IF('1st June'!E129="","",'1st June'!E129) ->  | F130: =IF('1st June'!F129="","",'1st June'!F129) -> 
B131: =IF('1st June'!B130="","",'1st June'!B130) ->  | C131: =IF('1st June'!C130="","",'1st June'!C130) ->  | D131: =IF('1st June'!D130="","",'1st June'!D130) ->  | E131: =IF('1st June'!E130="","",'1st June'!E130) ->  | F131: =IF('1st June'!F130="","",'1st June'!F130) -> 
B132: =IF('1st June'!B131="","",'1st June'!B131) ->  | C132: =IF('1st June'!C131="","",'1st June'!C131) ->  | D132: =IF('1st June'!D131="","",'1st June'!D131) ->  | E132: =IF('1st June'!E131="","",'1st June'!E131) ->  | F132: =IF('1st June'!F131="","",'1st June'!F131) -> 
B133: =IF('1st June'!B132="","",'1st June'!B132) ->  | C133: =IF('1st June'!C132="","",'1st June'!C132) ->  | D133: =IF('1st June'!D132="","",'1st June'!D132) ->  | E133: =IF('1st June'!E132="","",'1st June'!E132) ->  | F133: =IF('1st June'!F132="","",'1st June'!F132) -> 
B134: =IF('1st June'!B133="","",'1st June'!B133) ->  | C134: =IF('1st June'!C133="","",'1st June'!C133) ->  | D134: =IF('1st June'!D133="","",'1st June'!D133) ->  | E134: =IF('1st June'!E133="","",'1st June'!E133) ->  | F134: =IF('1st June'!F133="","",'1st June'!F133) -> 
B135: =IF('1st June'!B134="","",'1st June'!B134) ->  | C135: =IF('1st June'!C134="","",'1st June'!C134) ->  | D135: =IF('1st June'!D134="","",'1st June'!D134) ->  | E135: =IF('1st June'!E134="","",'1st June'!E134) ->  | F135: =IF('1st June'!F134="","",'1st June'!F134) -> 
B136: =IF('1st June'!B135="","",'1st June'!B135) ->  | C136: =IF('1st June'!C135="","",'1st June'!C135) ->  | D136: =IF('1st June'!D135="","",'1st June'!D135) ->  | E136: =IF('1st June'!E135="","",'1st June'!E135) ->  | F136: =IF('1st June'!F135="","",'1st June'!F135) -> 
B137: =IF('1st June'!B136="","",'1st June'!B136) ->  | C137: =IF('1st June'!C136="","",'1st June'!C136) ->  | D137: =IF('1st June'!D136="","",'1st June'!D136) ->  | E137: =IF('1st June'!E136="","",'1st June'!E136) ->  | F137: =IF('1st June'!F136="","",'1st June'!F136) -> 
B138: =IF('1st June'!B137="","",'1st June'!B137) ->  | C138: =IF('1st June'!C137="","",'1st June'!C137) ->  | D138: =IF('1st June'!D137="","",'1st June'!D137) ->  | E138: =IF('1st June'!E137="","",'1st June'!E137) ->  | F138: =IF('1st June'!F137="","",'1st June'!F137) -> 
B139: =IF('1st June'!B138="","",'1st June'!B138) ->  | C139: =IF('1st June'!C138="","",'1st June'!C138) ->  | D139: =IF('1st June'!D138="","",'1st June'!D138) ->  | E139: =IF('1st June'!E138="","",'1st June'!E138) ->  | F139: =IF('1st June'!F138="","",'1st June'!F138) -> 
B140: =IF('1st June'!B139="","",'1st June'!B139) ->  | C140: =IF('1st June'!C139="","",'1st June'!C139) ->  | D140: =IF('1st June'!D139="","",'1st June'!D139) ->  | E140: =IF('1st June'!E139="","",'1st June'!E139) ->  | F140: =IF('1st June'!F139="","",'1st June'!F139) -> 
B141: =IF('1st June'!B140="","",'1st June'!B140) ->  | C141: =IF('1st June'!C140="","",'1st June'!C140) ->  | D141: =IF('1st June'!D140="","",'1st June'!D140) ->  | E141: =IF('1st June'!E140="","",'1st June'!E140) ->  | F141: =IF('1st June'!F140="","",'1st June'!F140) -> 
B142: =IF('1st June'!B141="","",'1st June'!B141) ->  | C142: =IF('1st June'!C141="","",'1st June'!C141) ->  | D142: =IF('1st June'!D141="","",'1st June'!D141) ->  | E142: =IF('1st June'!E141="","",'1st June'!E141) ->  | F142: =IF('1st June'!F141="","",'1st June'!F141) -> 
B143: =IF('1st June'!B142="","",'1st June'!B142) ->  | C143: =IF('1st June'!C142="","",'1st June'!C142) ->  | D143: =IF('1st June'!D142="","",'1st June'!D142) ->  | E143: =IF('1st June'!E142="","",'1st June'!E142) ->  | F143: =IF('1st June'!F142="","",'1st June'!F142) -> 
B144: =IF('1st June'!B143="","",'1st June'!B143) ->  | C144: =IF('1st June'!C143="","",'1st June'!C143) ->  | D144: =IF('1st June'!D143="","",'1st June'!D143) ->  | E144: =IF('1st June'!E143="","",'1st June'!E143) ->  | F144: =IF('1st June'!F143="","",'1st June'!F143) -> 
B145: =IF('1st June'!B144="","",'1st June'!B144) ->  | C145: =IF('1st June'!C144="","",'1st June'!C144) ->  | D145: =IF('1st June'!D144="","",'1st June'!D144) ->  | E145: =IF('1st June'!E144="","",'1st June'!E144) ->  | F145: =IF('1st June'!F144="","",'1st June'!F144) -> 
B146: =IF('1st June'!B145="","",'1st June'!B145) ->  | C146: =IF('1st June'!C145="","",'1st June'!C145) ->  | D146: =IF('1st June'!D145="","",'1st June'!D145) ->  | E146: =IF('1st June'!E145="","",'1st June'!E145) ->  | F146: =IF('1st June'!F145="","",'1st June'!F145) -> 
B147: =IF('1st June'!B146="","",'1st June'!B146) ->  | C147: =IF('1st June'!C146="","",'1st June'!C146) ->  | D147: =IF('1st June'!D146="","",'1st June'!D146) ->  | E147: =IF('1st June'!E146="","",'1st June'!E146) ->  | F147: =IF('1st June'!F146="","",'1st June'!F146) -> 
B148: =IF('1st June'!B147="","",'1st June'!B147) ->  | C148: =IF('1st June'!C147="","",'1st June'!C147) ->  | D148: =IF('1st June'!D147="","",'1st June'!D147) ->  | E148: =IF('1st June'!E147="","",'1st June'!E147) ->  | F148: =IF('1st June'!F147="","",'1st June'!F147) -> 
B149: =IF('1st June'!B148="","",'1st June'!B148) ->  | C149: =IF('1st June'!C148="","",'1st June'!C148) ->  | D149: =IF('1st June'!D148="","",'1st June'!D148) ->  | E149: =IF('1st June'!E148="","",'1st June'!E148) ->  | F149: =IF('1st June'!F148="","",'1st June'!F148) -> 
B150: =IF('1st June'!B149="","",'1st June'!B149) ->  | C150: =IF('1st June'!C149="","",'1st June'!C149) ->  | D150: =IF('1st June'!D149="","",'1st June'!D149) ->  | E150: =IF('1st June'!E149="","",'1st June'!E149) ->  | F150: =IF('1st June'!F149="","",'1st June'!F149) -> 
B151: =IF('1st June'!B150="","",'1st June'!B150) ->  | C151: =IF('1st June'!C150="","",'1st June'!C150) ->  | D151: =IF('1st June'!D150="","",'1st June'!D150) ->  | E151: =IF('1st June'!E150="","",'1st June'!E150) ->  | F151: =IF('1st June'!F150="","",'1st June'!F150) -> 
B152: =IF('1st June'!B151="","",'1st June'!B151) ->  | C152: =IF('1st June'!C151="","",'1st June'!C151) ->  | D152: =IF('1st June'!D151="","",'1st June'!D151) ->  | E152: =IF('1st June'!E151="","",'1st June'!E151) ->  | F152: =IF('1st June'!F151="","",'1st June'!F151) -> 
B153: =IF('1st June'!B152="","",'1st June'!B152) ->  | C153: =IF('1st June'!C152="","",'1st June'!C152) ->  | D153: =IF('1st June'!D152="","",'1st June'!D152) ->  | E153: =IF('1st June'!E152="","",'1st June'!E152) ->  | F153: =IF('1st June'!F152="","",'1st June'!F152) -> 
B154: =IF('1st June'!B153="","",'1st June'!B153) ->  | C154: =IF('1st June'!C153="","",'1st June'!C153) ->  | D154: =IF('1st June'!D153="","",'1st June'!D153) ->  | E154: =IF('1st June'!E153="","",'1st June'!E153) ->  | F154: =IF('1st June'!F153="","",'1st June'!F153) -> 
B155: =IF('1st June'!B154="","",'1st June'!B154) ->  | C155: =IF('1st June'!C154="","",'1st June'!C154) ->  | D155: =IF('1st June'!D154="","",'1st June'!D154) ->  | E155: =IF('1st June'!E154="","",'1st June'!E154) ->  | F155: =IF('1st June'!F154="","",'1st June'!F154) -> 
B156: =IF('1st June'!B155="","",'1st June'!B155) ->  | C156: =IF('1st June'!C155="","",'1st June'!C155) ->  | D156: =IF('1st June'!D155="","",'1st June'!D155) ->  | E156: =IF('1st June'!E155="","",'1st June'!E155) ->  | F156: =IF('1st June'!F155="","",'1st June'!F155) -> 
B157: =IF('1st June'!B156="","",'1st June'!B156) ->  | C157: =IF('1st June'!C156="","",'1st June'!C156) ->  | D157: =IF('1st June'!D156="","",'1st June'!D156) ->  | E157: =IF('1st June'!E156="","",'1st June'!E156) ->  | F157: =IF('1st June'!F156="","",'1st June'!F156) -> 
B158: =IF('1st June'!B157="","",'1st June'!B157) ->  | C158: =IF('1st June'!C157="","",'1st June'!C157) ->  | D158: =IF('1st June'!D157="","",'1st June'!D157) ->  | E158: =IF('1st June'!E157="","",'1st June'!E157) ->  | F158: =IF('1st June'!F157="","",'1st June'!F157) -> 
B159: =IF('1st June'!B158="","",'1st June'!B158) ->  | C159: =IF('1st June'!C158="","",'1st June'!C158) ->  | D159: =IF('1st June'!D158="","",'1st June'!D158) ->  | E159: =IF('1st June'!E158="","",'1st June'!E158) ->  | F159: =IF('1st June'!F158="","",'1st June'!F158) -> 
B160: =IF('1st June'!B159="","",'1st June'!B159) ->  | C160: =IF('1st June'!C159="","",'1st June'!C159) ->  | D160: =IF('1st June'!D159="","",'1st June'!D159) ->  | E160: =IF('1st June'!E159="","",'1st June'!E159) ->  | F160: =IF('1st June'!F159="","",'1st June'!F159) -> 
B161: =IF('1st June'!B160="","",'1st June'!B160) ->  | C161: =IF('1st June'!C160="","",'1st June'!C160) ->  | D161: =IF('1st June'!D160="","",'1st June'!D160) ->  | E161: =IF('1st June'!E160="","",'1st June'!E160) ->  | F161: =IF('1st June'!F160="","",'1st June'!F160) -> 
B162: =IF('1st June'!B161="","",'1st June'!B161) ->  | C162: =IF('1st June'!C161="","",'1st June'!C161) ->  | D162: =IF('1st June'!D161="","",'1st June'!D161) ->  | E162: =IF('1st June'!E161="","",'1st June'!E161) ->  | F162: =IF('1st June'!F161="","",'1st June'!F161) -> 
B163: =IF('1st June'!B162="","",'1st June'!B162) ->  | C163: =IF('1st June'!C162="","",'1st June'!C162) ->  | D163: =IF('1st June'!D162="","",'1st June'!D162) ->  | E163: =IF('1st June'!E162="","",'1st June'!E162) ->  | F163: =IF('1st June'!F162="","",'1st June'!F162) -> 
B164: =IF('1st June'!B163="","",'1st June'!B163) ->  | C164: =IF('1st June'!C163="","",'1st June'!C163) ->  | D164: =IF('1st June'!D163="","",'1st June'!D163) ->  | E164: =IF('1st June'!E163="","",'1st June'!E163) ->  | F164: =IF('1st June'!F163="","",'1st June'!F163) -> 
B165: =IF('1st June'!B164="","",'1st June'!B164) ->  | C165: =IF('1st June'!C164="","",'1st June'!C164) ->  | D165: =IF('1st June'!D164="","",'1st June'!D164) ->  | E165: =IF('1st June'!E164="","",'1st June'!E164) ->  | F165: =IF('1st June'!F164="","",'1st June'!F164) -> 
B166: =IF('1st June'!B165="","",'1st June'!B165) ->  | C166: =IF('1st June'!C165="","",'1st June'!C165) ->  | D166: =IF('1st June'!D165="","",'1st June'!D165) ->  | E166: =IF('1st June'!E165="","",'1st June'!E165) ->  | F166: =IF('1st June'!F165="","",'1st June'!F165) -> 
B167: =IF('1st June'!B166="","",'1st June'!B166) ->  | C167: =IF('1st June'!C166="","",'1st June'!C166) ->  | D167: =IF('1st June'!D166="","",'1st June'!D166) ->  | E167: =IF('1st June'!E166="","",'1st June'!E166) ->  | F167: =IF('1st June'!F166="","",'1st June'!F166) -> 
B168: =IF('1st June'!B167="","",'1st June'!B167) ->  | C168: =IF('1st June'!C167="","",'1st June'!C167) ->  | D168: =IF('1st June'!D167="","",'1st June'!D167) ->  | E168: =IF('1st June'!E167="","",'1st June'!E167) ->  | F168: =IF('1st June'!F167="","",'1st June'!F167) -> 
B169: =IF('1st June'!B168="","",'1st June'!B168) ->  | C169: =IF('1st June'!C168="","",'1st June'!C168) ->  | D169: =IF('1st June'!D168="","",'1st June'!D168) ->  | E169: =IF('1st June'!E168="","",'1st June'!E168) ->  | F169: =IF('1st June'!F168="","",'1st June'!F168) -> 
B170: =IF('1st June'!B169="","",'1st June'!B169) ->  | C170: =IF('1st June'!C169="","",'1st June'!C169) ->  | D170: =IF('1st June'!D169="","",'1st June'!D169) ->  | E170: =IF('1st June'!E169="","",'1st June'!E169) ->  | F170: =IF('1st June'!F169="","",'1st June'!F169) -> 
B171: =IF('1st June'!B170="","",'1st June'!B170) ->  | C171: =IF('1st June'!C170="","",'1st June'!C170) ->  | D171: =IF('1st June'!D170="","",'1st June'!D170) ->  | E171: =IF('1st June'!E170="","",'1st June'!E170) ->  | F171: =IF('1st June'!F170="","",'1st June'!F170) -> 
B172: =IF('1st June'!B171="","",'1st June'!B171) ->  | C172: =IF('1st June'!C171="","",'1st June'!C171) ->  | D172: =IF('1st June'!D171="","",'1st June'!D171) ->  | E172: =IF('1st June'!E171="","",'1st June'!E171) ->  | F172: =IF('1st June'!F171="","",'1st June'!F171) -> 
B173: =IF('1st June'!B172="","",'1st June'!B172) ->  | C173: =IF('1st June'!C172="","",'1st June'!C172) ->  | D173: =IF('1st June'!D172="","",'1st June'!D172) ->  | E173: =IF('1st June'!E172="","",'1st June'!E172) ->  | F173: =IF('1st June'!F172="","",'1st June'!F172) -> 
B174: =IF('1st June'!B173="","",'1st June'!B173) ->  | C174: =IF('1st June'!C173="","",'1st June'!C173) ->  | D174: =IF('1st June'!D173="","",'1st June'!D173) ->  | E174: =IF('1st June'!E173="","",'1st June'!E173) ->  | F174: =IF('1st June'!F173="","",'1st June'!F173) -> 
B175: =IF('1st June'!B174="","",'1st June'!B174) ->  | C175: =IF('1st June'!C174="","",'1st June'!C174) ->  | D175: =IF('1st June'!D174="","",'1st June'!D174) ->  | E175: =IF('1st June'!E174="","",'1st June'!E174) ->  | F175: =IF('1st June'!F174="","",'1st June'!F174) -> 
B176: =IF('1st June'!B175="","",'1st June'!B175) ->  | C176: =IF('1st June'!C175="","",'1st June'!C175) ->  | D176: =IF('1st June'!D175="","",'1st June'!D175) ->  | E176: =IF('1st June'!E175="","",'1st June'!E175) ->  | F176: =IF('1st June'!F175="","",'1st June'!F175) -> 
B177: =IF('1st June'!B176="","",'1st June'!B176) ->  | C177: =IF('1st June'!C176="","",'1st June'!C176) ->  | D177: =IF('1st June'!D176="","",'1st June'!D176) ->  | E177: =IF('1st June'!E176="","",'1st June'!E176) ->  | F177: =IF('1st June'!F176="","",'1st June'!F176) -> 
B178: =IF('1st June'!B177="","",'1st June'!B177) ->  | C178: =IF('1st June'!C177="","",'1st June'!C177) ->  | D178: =IF('1st June'!D177="","",'1st June'!D177) ->  | E178: =IF('1st June'!E177="","",'1st June'!E177) ->  | F178: =IF('1st June'!F177="","",'1st June'!F177) -> 
B179: =IF('1st June'!B178="","",'1st June'!B178) ->  | C179: =IF('1st June'!C178="","",'1st June'!C178) ->  | D179: =IF('1st June'!D178="","",'1st June'!D178) ->  | E179: =IF('1st June'!E178="","",'1st June'!E178) ->  | F179: =IF('1st June'!F178="","",'1st June'!F178) -> 
B180: =IF('1st June'!B179="","",'1st June'!B179) ->  | C180: =IF('1st June'!C179="","",'1st June'!C179) ->  | D180: =IF('1st June'!D179="","",'1st June'!D179) ->  | E180: =IF('1st June'!E179="","",'1st June'!E179) ->  | F180: =IF('1st June'!F179="","",'1st June'!F179) -> 
B181: =IF('1st June'!B180="","",'1st June'!B180) ->  | C181: =IF('1st June'!C180="","",'1st June'!C180) ->  | D181: =IF('1st June'!D180="","",'1st June'!D180) ->  | E181: =IF('1st June'!E180="","",'1st June'!E180) ->  | F181: =IF('1st June'!F180="","",'1st June'!F180) -> 
B182: =IF('1st June'!B181="","",'1st June'!B181) ->  | C182: =IF('1st June'!C181="","",'1st June'!C181) ->  | D182: =IF('1st June'!D181="","",'1st June'!D181) ->  | E182: =IF('1st June'!E181="","",'1st June'!E181) ->  | F182: =IF('1st June'!F181="","",'1st June'!F181) -> 
B183: =IF('1st June'!B182="","",'1st June'!B182) ->  | C183: =IF('1st June'!C182="","",'1st June'!C182) ->  | D183: =IF('1st June'!D182="","",'1st June'!D182) ->  | E183: =IF('1st June'!E182="","",'1st June'!E182) ->  | F183: =IF('1st June'!F182="","",'1st June'!F182) -> 
B184: =IF('1st June'!B183="","",'1st June'!B183) ->  | C184: =IF('1st June'!C183="","",'1st June'!C183) ->  | D184: =IF('1st June'!D183="","",'1st June'!D183) ->  | E184: =IF('1st June'!E183="","",'1st June'!E183) ->  | F184: =IF('1st June'!F183="","",'1st June'!F183) -> 
B185: =IF('1st June'!B184="","",'1st June'!B184) ->  | C185: =IF('1st June'!C184="","",'1st June'!C184) ->  | D185: =IF('1st June'!D184="","",'1st June'!D184) ->  | E185: =IF('1st June'!E184="","",'1st June'!E184) ->  | F185: =IF('1st June'!F184="","",'1st June'!F184) -> 
B186: =IF('1st June'!B185="","",'1st June'!B185) ->  | C186: =IF('1st June'!C185="","",'1st June'!C185) ->  | D186: =IF('1st June'!D185="","",'1st June'!D185) ->  | E186: =IF('1st June'!E185="","",'1st June'!E185) ->  | F186: =IF('1st June'!F185="","",'1st June'!F185) -> 
B187: =IF('1st June'!B186="","",'1st June'!B186) ->  | C187: =IF('1st June'!C186="","",'1st June'!C186) ->  | D187: =IF('1st June'!D186="","",'1st June'!D186) ->  | E187: =IF('1st June'!E186="","",'1st June'!E186) ->  | F187: =IF('1st June'!F186="","",'1st June'!F186) -> 
B188: =IF('1st June'!B187="","",'1st June'!B187) ->  | C188: =IF('1st June'!C187="","",'1st June'!C187) ->  | D188: =IF('1st June'!D187="","",'1st June'!D187) ->  | E188: =IF('1st June'!E187="","",'1st June'!E187) ->  | F188: =IF('1st June'!F187="","",'1st June'!F187) -> 
B189: =IF('1st June'!B188="","",'1st June'!B188) ->  | C189: =IF('1st June'!C188="","",'1st June'!C188) ->  | D189: =IF('1st June'!D188="","",'1st June'!D188) ->  | E189: =IF('1st June'!E188="","",'1st June'!E188) ->  | F189: =IF('1st June'!F188="","",'1st June'!F188) -> 
B190: =IF('1st June'!B189="","",'1st June'!B189) ->  | C190: =IF('1st June'!C189="","",'1st June'!C189) ->  | D190: =IF('1st June'!D189="","",'1st June'!D189) ->  | E190: =IF('1st June'!E189="","",'1st June'!E189) ->  | F190: =IF('1st June'!F189="","",'1st June'!F189) -> 
B191: =IF('1st June'!B190="","",'1st June'!B190) ->  | C191: =IF('1st June'!C190="","",'1st June'!C190) ->  | D191: =IF('1st June'!D190="","",'1st June'!D190) ->  | E191: =IF('1st June'!E190="","",'1st June'!E190) ->  | F191: =IF('1st June'!F190="","",'1st June'!F190) -> 
B192: =IF('1st June'!B191="","",'1st June'!B191) ->  | C192: =IF('1st June'!C191="","",'1st June'!C191) ->  | D192: =IF('1st June'!D191="","",'1st June'!D191) ->  | E192: =IF('1st June'!E191="","",'1st June'!E191) ->  | F192: =IF('1st June'!F191="","",'1st June'!F191) -> 
B193: =IF('1st June'!B192="","",'1st June'!B192) ->  | C193: =IF('1st June'!C192="","",'1st June'!C192) ->  | D193: =IF('1st June'!D192="","",'1st June'!D192) ->  | E193: =IF('1st June'!E192="","",'1st June'!E192) ->  | F193: =IF('1st June'!F192="","",'1st June'!F192) -> 
B194: =IF('1st June'!B193="","",'1st June'!B193) ->  | C194: =IF('1st June'!C193="","",'1st June'!C193) ->  | D194: =IF('1st June'!D193="","",'1st June'!D193) ->  | E194: =IF('1st June'!E193="","",'1st June'!E193) ->  | F194: =IF('1st June'!F193="","",'1st June'!F193) -> 
B195: =IF('1st June'!B194="","",'1st June'!B194) ->  | C195: =IF('1st June'!C194="","",'1st June'!C194) ->  | D195: =IF('1st June'!D194="","",'1st June'!D194) ->  | E195: =IF('1st June'!E194="","",'1st June'!E194) ->  | F195: =IF('1st June'!F194="","",'1st June'!F194) -> 
B196: =IF('1st June'!B195="","",'1st June'!B195) ->  | C196: =IF('1st June'!C195="","",'1st June'!C195) ->  | D196: =IF('1st June'!D195="","",'1st June'!D195) ->  | E196: =IF('1st June'!E195="","",'1st June'!E195) ->  | F196: =IF('1st June'!F195="","",'1st June'!F195) -> 
B197: =IF('1st June'!B196="","",'1st June'!B196) ->  | C197: =IF('1st June'!C196="","",'1st June'!C196) ->  | D197: =IF('1st June'!D196="","",'1st June'!D196) ->  | E197: =IF('1st June'!E196="","",'1st June'!E196) ->  | F197: =IF('1st June'!F196="","",'1st June'!F196) -> 
B198: =IF('1st June'!B197="","",'1st June'!B197) ->  | C198: =IF('1st June'!C197="","",'1st June'!C197) ->  | D198: =IF('1st June'!D197="","",'1st June'!D197) ->  | E198: =IF('1st June'!E197="","",'1st June'!E197) ->  | F198: =IF('1st June'!F197="","",'1st June'!F197) -> 
B199: =IF('1st June'!B198="","",'1st June'!B198) ->  | C199: =IF('1st June'!C198="","",'1st June'!C198) ->  | D199: =IF('1st June'!D198="","",'1st June'!D198) ->  | E199: =IF('1st June'!E198="","",'1st June'!E198) ->  | F199: =IF('1st June'!F198="","",'1st June'!F198) -> 
B200: =IF('1st June'!B199="","",'1st June'!B199) ->  | C200: =IF('1st June'!C199="","",'1st June'!C199) ->  | D200: =IF('1st June'!D199="","",'1st June'!D199) ->  | E200: =IF('1st June'!E199="","",'1st June'!E199) ->  | F200: =IF('1st June'!F199="","",'1st June'!F199) -> 
... 300 more rows

Sheet 1st June
A1: Other | B1: App. Date | C1: Name | D1: Surname | E1: Pasaport No. | F1: Date of birth | G1: Note of stutus | H1: Price $ | I1: Paid $ | J1: Route | K1: Unpaid $ | O1: TOTAL
A2: 1 | B2: 2019-04-24T15:00:35.577 | C2: KHAYRI ATEEYAH ALMAHDI | D2: ALGHOUL | E2: RGZ10H6R | F2: 1973-05-08 | G2: Done | H2: 120 | J2: IHAB | K2: 120
A3: 2 | B3: 2019-04-28T12:39:44.370 | C3: ALZUBAYR FARAJ HASAN | D3: ALMUZOUGHI | E3: LPC37G85 | F3: 1993-11-21 | G3: Refused | H3: 0 | J3: nisreen | K3: 100 | M3: DONE | O3: Total amount | S3: Route | T3: Total Unpaid | W3: =Noblanks(J2:J499) -> IHAB | X3: Route | Y3: Count of Route
A4: 3 | B4: 2019-04-28T13:13:30.707 | C4: ZAKRIA | D4: ALMOZGI | E4: GL35GN54 | F4: 1991-12-02 | G4: Refused | H4: 0 | J4: IHAB | K4: 120 | M4: CANCELLED | O4: =SUM(H2:H69) -> 6997 | S4: =IF(ISERROR(INDEX($W$3:$W$70,MATCH(0,COUNTIF($S$3:S3,$W$3:$W$69),0))),"",INDEX($W$3:$W$69,MATCH(0,COUNTIF($S$3:S3,$W$3:$W$69),0))) -> IHAB | T4: =IF(S4<>"",SUMPRODUCT(--($J$2:$J$69=S4),$K$2:$K$69),"") -> 790 | W4: =Noblanks(U6:U499) -> IHAB | X4: MISTAKE IN DOB | Y4: =COUNTIF(J2:J70,"MISTAKE IN DOB") -> 2
A5: 4 | B5: 2019-04-29T13:36:16.330 | C5: OMAR | D5: ELMOHASHSH | E5: NCJRH93G | F5: 1990-09-28 | G5: Cancelled | H5: 120 | I5: 120 | M5: REFUSED | S5: =IF(ISERROR(INDEX($W$3:$W$70,MATCH(0,COUNTIF($S$3:S4,$W$3:$W$69),0))),"",INDEX($W$3:$W$69,MATCH(0,COUNTIF($S$3:S4,$W$3:$W$69),0))) -> nisreen | T5: =IF(S5<>"",SUMPRODUCT(--($J$2:$J$69=S5),$K$2:$K$69),"") -> 220 | W5: =Noblanks(U7:U500) -> nisreen
A6: 5 | B6: 2019-04-29T13:42:27.433 | C6: HIND | D6: OSMAN | E6: C5NR6798 | F6: 1994-05-01 | G6: Green pass. | H6: 120 | I6: 120 | M6: MISTAKE | O6: Total Paid | Q6: Difrent amount | S6: =IF(ISERROR(INDEX($W$3:$W$70,MATCH(0,COUNTIF($S$3:S5,$W$3:$W$69),0))),"",INDEX($W$3:$W$69,MATCH(0,COUNTIF($S$3:S5,$W$3:$W$69),0))) -> BINDARDAF | T6: =IF(S6<>"",SUMPRODUCT(--($J$2:$J$69=S6),$K$2:$K$69),"") -> 120 | U6: =IF(K2="","",J2) -> IHAB | W6: =Noblanks(U8:U501) -> IHAB
A7: 6 | B7: 2019-05-02T16:57:01.433 | C7: MOHAMED | D7: ALBIJOU | E7: RJH6LLCZ | F7: 1991-04-24 | H7: 120 | I7: 120 | M7: GREEN PASS. | O7: =SUM(I2:I67) -> 5760 | Q7: =O4-(O7+T23) -> -353 | S7: =IF(ISERROR(INDEX($W$3:$W$70,MATCH(0,COUNTIF($S$3:S6,$W$3:$W$69),0))),"",INDEX($W$3:$W$69,MATCH(0,COUNTIF($S$3:S6,$W$3:$W$69),0))) -> SALAH SHABASH | T7: =IF(S7<>"",SUMPRODUCT(--($J$2:$J$69=S7),$K$2:$K$69),"") -> 120 | U7: nisreen | W7: =Noblanks(U9:U502) -> BINDARDAF
A8: 7 | B8: 2019-05-02T17:04:28.613 | C8: SANA | D8: ELHASSI | E8: HCJ6L6PK | F8: 1991-09-29 | H8: 120 | I8: 120 | S8: =IF(ISERROR(INDEX($W$3:$W$70,MATCH(0,COUNTIF($S$3:S7,$W$3:$W$69),0))),"",INDEX($W$3:$W$69,MATCH(0,COUNTIF($S$3:S7,$W$3:$W$69),0))) -> SHAHOMI | T8: =IF(S8<>"",SUMPRODUCT(--($J$2:$J$69=S8),$K$2:$K$69),"") -> 240 | U8: IHAB | W8: =Noblanks(U10:U503) -> BINDARDAF
A9: 8 | B9: 2019-05-08T12:55:30.870 | C9: AISHA | D9: ALSAKLOUL | E9: NPJ3YZH4 | F9: 1979-05-25 | H9: 120 | I9: 120 | O9: Total UnPaid | Q9: =COUNT(B:B) -> 76 | S9: =IF(ISERROR(INDEX($W$3:$W$70,MATCH(0,COUNTIF($S$3:S8,$W$3:$W$69),0))),"",INDEX($W$3:$W$69,MATCH(0,COUNTIF($S$3:S8,$W$3:$W$69),0))) -> saleh | T9: =IF(S9<>"",SUMPRODUCT(--($J$2:$J$69=S9),$K$2:$K$69),"") -> 100 | W9: =Noblanks(U11:U504) -> BINDARDAF
A10: 9 | B10: 2019-05-08T13:03:32.563 | C10: ESLAM | D10: ALSAKLOUL | E10: NPNKR1RZ | F10: 1990-01-15 | G10: Mistake | H10: 87 | J10: MISTAKE IN DOB | O10: =SUM(T4:T15) -> 1590 | S10: =IF(ISERROR(INDEX($W$3:$W$70,MATCH(0,COUNTIF($S$3:S9,$W$3:$W$69),0))),"",INDEX($W$3:$W$69,MATCH(0,COUNTIF($S$3:S9,$W$3:$W$69),0))) ->  | T10: =IF(S10<>"",SUMPRODUCT(--($J$2:$J$69=S10),$K$2:$K$69),"") ->  | W10: =Noblanks(U12:U505) -> BINDARDAF
A11: 10 | B11: 2019-05-12T15:21:28.803 | C11: ESLAM | D11: ALSAKLOUL | E11: -NPNKR1RZ | F11: 1996-01-15 | H11: 120 | I11: 120 | J11: MISTAKE IN DOB | S11: =IF(ISERROR(INDEX($W$3:$W$70,MATCH(0,COUNTIF($S$3:S10,$W$3:$W$69),0))),"",INDEX($W$3:$W$69,MATCH(0,COUNTIF($S$3:S10,$W$3:$W$69),0))) ->  | T11: =IF(S11<>"",SUMPRODUCT(--($J$2:$J$69=S11),$K$2:$K$69),"") ->  | W11: =Noblanks(U13:U506) -> BINDARDAF
A12: 11 | B12: 2019-05-16T13:48:08.413 | C12: MUHANAD | D12: ELBURKI | E12: J7G3JY60 | F12: 1984-01-21 | H12: 110 | I12: 110 | S12: =IF(ISERROR(INDEX($W$3:$W$70,MATCH(0,COUNTIF($S$3:S11,$W$3:$W$69),0))),"",INDEX($W$3:$W$69,MATCH(0,COUNTIF($S$3:S11,$W$3:$W$69),0))) ->  | T12: =IF(S12<>"",SUMPRODUCT(--($J$2:$J$69=S12),$K$2:$K$69),"") ->  | W12: =Noblanks(U14:U507) -> BINDARDAF
A13: 12 | B13: 2019-05-16T13:53:24.300 | C13: ENAS | D13: IKJAM | E13: R4HHCPY4 | F13: 1985-02-06 | H13: 110 | I13: 110 | S13: =IF(ISERROR(INDEX($W$3:$W$70,MATCH(0,COUNTIF($S$3:S12,$W$3:$W$69),0))),"",INDEX($W$3:$W$69,MATCH(0,COUNTIF($S$3:S12,$W$3:$W$69),0))) ->  | W13: =Noblanks(U15:U508) -> BINDARDAF
A14: 13 | B14: 2019-05-19T13:26:46.853 | C14: LAILA | D14: BEN ISMAIL | E14: K2P1N4N8 | F14: 1966-04-06 | H14: 120 | I14: 120 | S14: =IF(ISERROR(INDEX($W$3:$W$70,MATCH(0,COUNTIF($S$3:S13,$W$3:$W$69),0))),"",INDEX($W$3:$W$69,MATCH(0,COUNTIF($S$3:S13,$W$3:$W$69),0))) ->  | W14: =Noblanks(U16:U509) -> BINDARDAF
A15: 14 | B15: 2019-05-19T13:31:45.700 | C15: YASMIN | D15: EL SAHLI | E15: PCPY0PG9 | F15: 2005-05-15 | H15: 120 | I15: 120 | S15: =IF(ISERROR(INDEX($W$3:$W$70,MATCH(0,COUNTIF($S$3:S14,$W$3:$W$69),0))),"",INDEX($W$3:$W$69,MATCH(0,COUNTIF($S$3:S14,$W$3:$W$69),0))) ->  | W15: =Noblanks(U17:U510) -> BINDARDAF
A16: 15 | B16: 2019-05-19T13:35:47.647 | C16: YOMNA | D16: EL SAHLI | E16: PCR55NJP | F16: 2002-02-27 | H16: 120 | I16: 120 | S16: =IF(ISERROR(INDEX($W$3:$W$70,MATCH(0,COUNTIF($S$3:S15,$W$3:$W$69),0))),"",INDEX($W$3:$W$69,MATCH(0,COUNTIF($S$3:S15,$W$3:$W$69),0))) ->  | V16: =Noblanks(X13:X15) ->  | W16: =Noblanks(U18:U511) -> BINDARDAF
A17: 16 | B17: 2019-05-21T16:16:50.417 | C17: ALSADEG | D17: AGILA | E17: P81G5CK1 | F17: 1978-01-05 | H17: 100 | I17: 100 | S17: =IF(ISERROR(INDEX($W$3:$W$70,MATCH(0,COUNTIF($S$3:S16,$W$3:$W$69),0))),"",INDEX($W$3:$W$69,MATCH(0,COUNTIF($S$3:S16,$W$3:$W$69),0))) ->  | V17: =Noblanks(X14:X16) ->  | W17: =Noblanks(U19:U512) -> BINDARDAF
A18: 17 | B18: 2019-05-22T13:16:38.180 | C18: KHOLUD | D18: KRAIM | E18: F9K1J6G5 | F18: 1983-08-06 | H18: 120 | J18: BINDARDAF | K18: 120 | S18: =IF(ISERROR(INDEX($W$3:$W$70,MATCH(0,COUNTIF($S$3:S17,$W$3:$W$69),0))),"",INDEX($W$3:$W$69,MATCH(0,COUNTIF($S$3:S17,$W$3:$W$69),0))) ->  | W18: =Noblanks(U20:U513) -> BINDARDAF
A19: 18 | B19: 2019-05-23T12:28:57.527 | C19: RAMADHAN | D19: GARGOM | E19: 000C6236LL1 | F19: 1977-04-21 | H19: 120 | J19: SALAH SHABASH | K19: 120 | S19: =IF(ISERROR(INDEX($W$3:$W$70,MATCH(0,COUNTIF($S$3:S18,$W$3:$W$69),0))),"",INDEX($W$3:$W$69,MATCH(0,COUNTIF($S$3:S18,$W$3:$W$69),0))) ->  | W19: =Noblanks(U21:U514) -> BINDARDAF
A20: 19 | B20: 2019-05-28T17:03:35.457 | C20: ABTISAM | D20: HOUSSEIN | E20: HZLY9H3G | F20: 1983-10-01 | H20: 180 | I20: 180 | S20: =IF(ISERROR(INDEX($W$3:$W$70,MATCH(0,COUNTIF($S$3:S19,$W$3:$W$69),0))),"",INDEX($W$3:$W$69,MATCH(0,COUNTIF($S$3:S19,$W$3:$W$69),0))) ->  | W20: =Noblanks(U22:U515) -> BINDARDAF
A21: 20 | B21: 2019-05-29T18:56:52.767 | C21: ABOBAKER | D21: ALSHADLI | E21: NGR095HY | F21: 1985-04-08 | H21: 110 | I21: 110 | S21: =IF(ISERROR(INDEX($W$3:$W$70,MATCH(0,COUNTIF($S$3:S20,$W$3:$W$69),0))),"",INDEX($W$3:$W$69,MATCH(0,COUNTIF($S$3:S20,$W$3:$W$69),0))) ->  | W21: =Noblanks(U23:U516) -> SALAH SHABASH
A22: 21 | B22: 2019-06-09T12:00:50.073 | C22: ADEL | D22: ALABYADH | E22: RG2KYP15 | F22: 1976-02-20 | H22: 110 | I22: 110 | S22: =IF(ISERROR(INDEX($W$3:$W$70,MATCH(0,COUNTIF($S$3:S21,$W$3:$W$69),0))),"",INDEX($W$3:$W$69,MATCH(0,COUNTIF($S$3:S21,$W$3:$W$69),0))) ->  | U22: BINDARDAF | W22: =Noblanks(U24:U517) -> IHAB | Y22: =IFERROR(INDEX($J$2:$J$499,SMALL(IF($J$2:$J$499<>"",ROW($J$1:$J$499)-ROW($J$2)+1,""),ROWS($Y$21:Y22))),"") -> 
A23: 22 | B23: 2019-06-09T13:19:06.617 | C23: MOHAMED | D23: ALBIJOU | E23: +RJH6LLCZ | F23: 1991-04-24 | H23: 120 | I23: 120 | S23: Total | T23: =SUM(T4:T22) -> 1590 | U23: SALAH SHABASH | W23: =Noblanks(U25:U518) -> IHAB | Y23: =IFERROR(INDEX($J$2:$J$499,SMALL(IF($J$2:$J$499<>"",ROW($J$1:$J$499)-ROW($J$2)+1,""),ROWS($Y$21:Y23))),"") -> 
A24: 23 | B24: 2019-06-09T13:42:41.223 | C24: ALMAHDI | D24: ALBAHLOUL | E24: P28YYP83 | F24: 1981-10-06 | H24: 100 | I24: 100 | W24: =Noblanks(U26:U519) -> IHAB | Y24: =IFERROR(INDEX($J$2:$J$499,SMALL(IF($J$2:$J$499<>"",ROW($J$1:$J$499)-ROW($J$2)+1,""),ROWS($Y$21:Y24))),"") -> 
A25: 24 | B25: 2019-06-09T15:32:46.743 | C25: KHADIJA | D25: AGILA | E25: HN058N7F | F25: 1995-05-05 | H25: 100 | I25: 100 | W25: =Noblanks(U27:U520) -> IHAB | Y25: =IFERROR(INDEX($J$2:$J$499,SMALL(IF($J$2:$J$499<>"",ROW($J$1:$J$499)-ROW($J$2)+1,""),ROWS($Y$21:Y25))),"") -> 
A26: 25 | B26: 2019-06-10T13:58:24.787 | C26: MUNIR | D26: ELAGOURI | E26: FPFGG8YP | F26: 1975-03-01 | H26: 110 | I26: 110 | W26: =Noblanks(U28:U521) -> IHAB
A27: 26 | B27: 2019-06-10T14:15:21.727 | C27: ABDULBASIT | D27: ALTAHIR | E27: LCLRC5F0 | F27: 1971-10-12 | H27: 110 | I27: 110 | W27: =Noblanks(U29:U522) -> IHAB
A28: 27 | B28: 2019-06-10T14:32:41.430 | C28: OMAR | D28: ALTAHIR | E28: HP52ZG24 | F28: 1975-04-01 | H28: 110 | I28: 110 | W28: =Noblanks(U30:U523) -> IHAB
A29: 28 | B29: 2019-06-10T16:05:09.850 | C29: OSAMA | D29: BELGASEM | E29: QY84LPJY | F29: 1976-10-04 | H29: 110 | I29: 110 | W29: =Noblanks(U31:U524) -> IHAB
A30: 29 | B30: 2019-06-10T16:08:07.367 | C30: NESRIN | D30: MOHAMED | E30: GY8Y7L1N | F30: 1982-06-10 | H30: 110 | I30: 110 | W30: =Noblanks(U32:U525) -> IHAB
A31: 30 | B31: 2019-06-10T16:45:00.743 | C31: OMAR | D31: ELHMRRI | E31: HYY6NGL2 | F31: 1990-11-22 | G31: Cancelled | H31: 0 | I31: 0 | W31: =Noblanks(U33:U526) -> IHAB
A32: 31 | B32: 2019-06-10T16:50:13.033 | C32: GHALIYAH | D32: ALHAMRI | E32: CKN315PH | F32: 1987-06-03 | H32: 0 | I32: 0 | W32: =Noblanks(U34:U527) -> IHAB
A33: 32 | B33: 2019-06-11T12:02:25.957 | C33: BRAA | D33: ELMANGOSH | E33: +C0881J9P | F33: 1994-02-06 | H33: 225 | J33: IHAB | K33: 225 | W33: =Noblanks(U35:U528) -> IHAB
A34: 33 | B34: 2019-06-11T12:06:47.277 | C34: ZAINAB | D34: ELSADEG | E34: L0KPKR13 | F34: 1955-12-25 | H34: 25 | J34: IHAB | K34: 25 | W34: =Noblanks(U36:U529) -> IHAB
A35: 34 | B35: 2019-06-11T12:24:45.843 | C35: ASEIDA | D35: AHNESH | E35: JZ3PC669 | F35: 1994-08-02 | H35: 110 | I35: 110 | W35: =Noblanks(U37:U530) -> IHAB
A36: 35 | B36: 2019-06-11T14:08:21.950 | C36: NASSER | D36: BENHALLOUM | E36: CGJJFN87 | F36: 1959-01-01 | H36: 110 | I36: 110 | J36: DR.ABDO | W36: =Noblanks(U38:U531) -> IHAB
A37: 36 | B37: 2019-06-11T14:12:07.113 | C37: ABDULLAH | D37: BINHALLOUM | E37: HRC82HFJ | F37: 1990-08-19 | H37: 110 | I37: 110 | J37: DR.ABDO | U37: IHAB | W37: =Noblanks(U39:U532) -> IHAB
A38: 37 | B38: 2019-06-12T13:06:19.563 | C38: ALAADIN | D38: ALSHARKSI | E38: LL2JC154 | F38: 1968-09-04 | H38: 100 | J38: IHAB | K38: 100 | U38: =IF(K34="","",J34) -> IHAB | W38: =Noblanks(U40:U533) -> IHAB
A39: 38 | B39: 2019-06-12T13:11:53.757 | C39: AHLAM | D39: ABDALLAH | E39: LL00C60N | F39: 1974-06-08 | H39: 100 | J39: IHAB | K39: 100 | W39: =Noblanks(U41:U534) -> IHAB
A40: 39 | B40: 2019-06-12T13:15:23.813 | C40: ALAA | D40: ALSHARKASI | E40: L22L1RCP | F40: 2007-05-14 | H40: 100 | J40: IHAB | K40: 100 | W40: =Noblanks(U42:U535) -> IHAB
A41: 40 | B41: 2019-06-13T15:33:52.910 | C41: OMAR | D41: ELHMRRI | E41: +HYY6NGL2 | F41: 1990-11-22 | H41: 120 | I41: 120 | W41: =Noblanks(U43:U536) -> IHAB
A42: 41 | B42: 2019-06-13T15:39:21.060 | C42: LAYLAY | D42: BOUSHEEHAH | E42: HYZG20YC | F42: 1966-01-01 | H42: 80 | I42: 80 | U42: IHAB | W42: =Noblanks(U44:U537) -> IHAB
A43: 42 | B43: 2019-06-17T12:12:51.307 | C43: SALAH EDDIN | D43: SHAHOMI | E43: GY1JRP7P | F43: 1976-05-25 | H43: 120 | I43: 120 | U43: IHAB | W43: =Noblanks(U45:U538) -> SHAHOMI
A44: 43 | B44: 2019-06-17T12:17:44.810 | C44: MARWA | D44: ASHTITI | E44: GY42C07F | F44: 1990-09-24 | H44: 120 | I44: 120 | U44: IHAB | W44: =Noblanks(U46:U539) -> SHAHOMI
A45: 44 | B45: 2019-06-17T12:51:47.780 | C45: ZAHRAH | D45: BOURAWI | E45: P7RLF9J0 | F45: 1965-08-28 | H45: 120 | I45: 120 | W45: =Noblanks(U47:U540) -> SHAHOMI
A46: 45 | B46: 2019-06-17T12:56:59.610 | C46: ABDELRAHIM | D46: ALSHATEETI | E46: GR3P9FZK | F46: 1992-01-04 | H46: 120 | I46: 120 | W46: =Noblanks(U48:U541) -> SHAHOMI
A47: 46 | B47: 2019-06-17T13:02:00.187 | C47: AHMED | D47: ALSHATEETI | E47: FRF2YK0C | F47: 1995-10-06 | H47: 120 | I47: 120 | W47: =Noblanks(U49:U542) -> SHAHOMI
A48: 47 | B48: 2019-06-18T12:24:59.867 | C48: IBRAHIM | D48: ELGAHANI | E48: H07H239J | F48: 1984-01-11 | H48: 110 | I48: 110 | J48: HAMZA | W48: =Noblanks(U50:U543) -> SHAHOMI
A49: 48 | B49: 2019-06-18T12:28:44.510 | C49: NADAY | D49: ALARJ | E49: CFJ2L289 | F49: 1996-12-26 | H49: 110 | I49: 110 | J49: HAMZA | W49: =Noblanks(U51:U544) -> SHAHOMI
A50: 49 | B50: 2019-06-18T17:22:15.387 | C50: OMAR | D50: ALBISHARI | E50: LN0G4RC3 | F50: 1984-03-12 | H50: 100 | I50: 100 | W50: =Noblanks(U52:U545) -> SHAHOMI
A51: 50 | B51: 2019-06-18T17:54:11.480 | C51: SHIMA | D51: ALBASHARI | E51: HF7F2F8N | F51: 1990-01-21 | H51: 100 | I51: 100 | W51: =Noblanks(U53:U546) -> SHAHOMI
A52: 51 | B52: 2019-06-20T11:42:46.477 | C52: MARWA | D52: ELMAHDI | E52: CK5R6GCC | F52: 1996-02-13 | H52: 180 | I52: 180 | W52: =Noblanks(U54:U547) -> SHAHOMI
A53: 52 | B53: 2019-06-20T12:12:00.130 | C53: BALGEIS | D53: BADI | E53: GN575LJ5 | F53: 1963-01-01 | H53: 80 | I53: 80 | W53: =Noblanks(U55:U548) -> SHAHOMI
A54: 53 | B54: 2019-06-20T12:18:10.100 | C54: MIRA | D54: GLESSA | E54: GN3FZG0P | F54: 2006-07-31 | H54: 120 | I54: 120 | W54: =Noblanks(U56:U549) -> SHAHOMI
A55: 54 | B55: 2019-06-20T12:27:13.480 | C55: HANI | D55: GLESSA | E55: GN755ZZJ | F55: 2004-01-20 | H55: 120 | I55: 120 | W55: =Noblanks(U57:U550) -> SHAHOMI
A56: 55 | B56: 2019-06-20T14:38:24.320 | C56: YAHIA | D56: ELFALLAH | E56: JKP7CGP2 | F56: 1970-01-01 | H56: 110 | I56: 110 | W56: =Noblanks(U58:U551) -> SHAHOMI
A57: 56 | B57: 2019-06-20T14:43:13.117 | C57: ABTESAM | D57: BADER | E57: C9127619 | F57: 1971-02-06 | H57: 110 | I57: 110 | W57: =Noblanks(U59:U552) -> SHAHOMI
A58: 57 | B58: 2019-06-20T14:46:41.963 | C58: NOOR | D58: ALFALLAH | E58: C8RRLPH0 | F58: 2002-09-04 | H58: 110 | I58: 110 | W58: =Noblanks(U60:U553) -> SHAHOMI
A59: 58 | B59: 2019-06-20T14:53:30.030 | C59: ISLAM | D59: ALFALLAH | E59: C8LCJ63Y | F59: 2004-01-11 | H59: 110 | I59: 110 | W59: =Noblanks(U61:U554) -> SHAHOMI
A60: 59 | B60: 2019-06-20T16:10:06.907 | C60: AHMED | D60: BEDA | E60: H9941GK0 | F60: 1979-10-06 | H60: 120 | J60: SHAHOMI | K60: 120 | W60: =Noblanks(U62:U555) -> SHAHOMI
A61: 60 | B61: 2019-06-20T16:26:14.793 | C61: ESRAA | D61: GINI | E61: H973R816 | F61: 1989-03-22 | H61: 120 | J61: SHAHOMI | K61: 120 | W61: =Noblanks(U63:U556) -> SHAHOMI
A62: 61 | B62: 2019-06-20T18:11:23.413 | C62: ABDELJAUL | D62: ELAYTIE | E62: FRNFL9ZK | F62: 1959-08-28 | H62: 100 | I62: 100 | J62: nisreen | K62: 120 | W62: =Noblanks(U64:U557) -> SHAHOMI
A63: 62 | B63: 2019-06-20T18:14:02.773 | C63: SALMA | D63: ELZEWI | E63: FRYCP0P3 | F63: 1958-01-01 | H63: 100 | I63: 100 | J63: saleh | K63: 100 | W63: =Noblanks(U65:U558) -> SHAHOMI
A64: 63 | B64: 2019-06-20T18:17:26.260 | C64: MARWA | D64: ELSAYTIE | E64: FRN4NYCF | F64: 1991-02-12 | H64: 100 | I64: 100 | U64: SHAHOMI | W64: =Noblanks(U66:U559) -> nisreen
A65: 64 | B65: 2019-06-20T18:23:05.277 | C65: ALI | D65: ALSAEITI | E65: GG019KY0 | F65: 1996-12-22 | H65: 100 | I65: 100 | U65: SHAHOMI | W65: =Noblanks(U67:U560) -> saleh
A66: 65 | B66: 2019-06-20T19:09:13.237 | C66: KHADEEJAH | D66: ALZAWI | E66: F1KY0LK0 | F66: 1966-11-21 | H66: 100 | I66: 100 | U66: nisreen | W66: =Noblanks(U68:U561) -> 
A67: 66 | B67: 2019-06-20T19:17:53.300 | C67: AIDAH | D67: BEIDA | E67: G15PZZ2F | F67: 1973-10-25 | H67: 100 | I67: 100 | U67: saleh | W67: =Noblanks(U69:U562) -> 
A68: 67 | B68: 2019-06-20T19:26:33.365 | C68: KHADEEJAH | D68: ALZAWI | E68: F1KY0LK1 | F68: 1980-09-28 | W68: =Noblanks(U70:U563) -> 
A69: 68 | B69: 2019-06-20T19:35:13.430 | C69: AIDAH | D69: BEIDA | E69: G15PZZ2F | F69: 1987-09-02 | W69: =Noblanks(U71:U564) -> 
A70: 69 | B70: 2019-06-20T19:43:53.495 | C70: KHADEEJAH | D70: ALZAWI | E70: F1KY0LK2 | F70: 1994-08-06 | U70: =IF(K66="","",J66) ->  | W70: =Noblanks(U72:U565) -> 
A71: 70 | B71: 2019-06-20T19:52:33.560 | C71: AIDAH | D71: BEIDA | E71: G15PZZ2F | F71: 2001-07-10 | U71: =IF(K67="","",J67) ->  | W71: =Noblanks(U73:U566) -> 
A72: 71 | B72: 2019-06-20T20:01:13.625 | C72: KHADEEJAH | D72: ALZAWI | E72: F1KY0LK3 | F72: 2008-06-13 | W72: =Noblanks(U74:U567) -> 
A73: 72 | B73: 2019-06-20T20:09:53.690 | C73: AIDAH | D73: BEIDA | E73: G15PZZ2F | F73: 2015-05-18 | W73: =Noblanks(U75:U568) -> 
A74: 73 | B74: 2019-06-20T20:18:33.755 | C74: KHADEEJAH | D74: ALZAWI | E74: F1KY0LK4 | F74: 2022-04-21 | W74: =Noblanks(U76:U569) -> 
A75: 74 | B75: 2019-06-20T20:27:13.820 | C75: AIDAH | D75: BEIDA | E75: G15PZZ2F | F75: 2029-03-25 | W75: =Noblanks(U77:U570) -> 
A76: 75 | B76: 2019-06-20T20:35:53.885 | C76: KHADEEJAH | D76: ALZAWI | E76: F1KY0LK5 | F76: 2036-02-27 | W76: =Noblanks(U78:U571) -> 
A77: 76 | B77: 2019-06-20T20:44:33.950 | C77: AIDAH | D77: BEIDA | E77: G15PZZ2F | F77: 2043-01-31 | W77: =Noblanks(U79:U572) -> 
W78: =Noblanks(U80:U573) -> 
W79: =Noblanks(U81:U574) -> 
W80: =Noblanks(U82:U575) -> 
W81: =Noblanks(U83:U576) -> 
W82: =Noblanks(U84:U577) -> 
W83: =Noblanks(U85:U578) -> 
W84: =Noblanks(U86:U579) -> 
W85: =Noblanks(U87:U580) -> 
W86: =Noblanks(U88:U581) -> 
W87: =Noblanks(J86:J583) -> 
W88: =Noblanks(J87:J584) -> 
W89: =Noblanks(J88:J585) -> 
W90: =Noblanks(J89:J586) -> 
W91: =Noblanks(J90:J587) -> 
W92: =Noblanks(J91:J588) -> 
W93: =Noblanks(J92:J589) -> 
W94: =Noblanks(J93:J590) -> 
W95: =Noblanks(J94:J591) -> 
W96: =Noblanks(J95:J592) -> 
W97: =Noblanks(J96:J593) -> 
W98: =Noblanks(J97:J594) -> 
W99: =Noblanks(J98:J595) -> 
W100: =Noblanks(J99:J596) -> 
W101: =Noblanks(J100:J597) -> 
W102: =Noblanks(J101:J598) -> 
W103: =Noblanks(J102:J599) -> 
W104: =Noblanks(J103:J600) -> 
W105: =Noblanks(J104:J601) -> 
W106: =Noblanks(J105:J602) -> 
W107: =Noblanks(J106:J603) -> 
W108: =Noblanks(J107:J604) -> 
W109: =Noblanks(J108:J605) -> 
W110: =Noblanks(J109:J606) -> 
W111: =Noblanks(J110:J607) -> 
W112: =Noblanks(J111:J608) -> 
W113: =Noblanks(J112:J609) -> 
W114: =Noblanks(J113:J610) -> 
W115: =Noblanks(J114:J611) -> 
W116: =Noblanks(J115:J612) -> 
W117: =Noblanks(J116:J613) -> 
W118: =Noblanks(J117:J614) -> 
W119: =Noblanks(J118:J615) -> 
W120: =Noblanks(J119:J616) -> 
W121: =Noblanks(J120:J617) -> 
W122: =Noblanks(J121:J618) -> 
W123: =Noblanks(J122:J619) -> 
W124: =Noblanks(J123:J620) -> 
W125: =Noblanks(J124:J621) -> 
W126: =Noblanks(J125:J622) -> 
W127: =Noblanks(J126:J623) -> 
W128: =Noblanks(J127:J624) -> 
W129: =Noblanks(J128:J625) -> 
W130: =Noblanks(J129:J626) -> 
W131: =Noblanks(J130:J627) -> 
W132: =Noblanks(J131:J628) -> 
W133: =Noblanks(J132:J629) -> 
W134: =Noblanks(J133:J630) -> 
W135: =Noblanks(J134:J631) -> 
W136: =Noblanks(J135:J632) -> 
W137: =Noblanks(J136:J633) -> 
W138: =Noblanks(J137:J634) -> 
W139: =Noblanks(J138:J635) -> 
W140: =Noblanks(J139:J636) -> 
W141: =Noblanks(J140:J637) -> 
W142: =Noblanks(J141:J638) -> 
W143: =Noblanks(J142:J639) -> 
W144: =Noblanks(J143:J640) -> 
W145: =Noblanks(J144:J641) -> 
W146: =Noblanks(J145:J642) -> 
W147: =Noblanks(J146:J643) -> 
W148: =Noblanks(J147:J644) -> 
W149: =Noblanks(J148:J645) -> 
W150: =Noblanks(J149:J646) -> 
W151: =Noblanks(J150:J647) -> 
W152: =Noblanks(J151:J648) -> 
W153: =Noblanks(J152:J649) -> 
W154: =Noblanks(J153:J650) -> 
W155: =Noblanks(J154:J651) -> 
W156: =Noblanks(J155:J652) -> 
W157: =Noblanks(J156:J653) -> 
W158: =Noblanks(J157:J654) -> 
W159: =Noblanks(J158:J655) -> 
W160: =Noblanks(J159:J656) -> 
W161: =Noblanks(J160:J657) -> 
W162: =Noblanks(J161:J658) -> 
W163: =Noblanks(J162:J659) -> 
W164: =Noblanks(J163:J660) -> 
W165: =Noblanks(J164:J661) -> 
W166: =Noblanks(J165:J662) -> 
W167: =Noblanks(J166:J663) -> 
W168: =Noblanks(J167:J664) -> 
W169: =Noblanks(J168:J665) -> 
W170: =Noblanks(J169:J666) -> 
W171: =Noblanks(J170:J667) -> 
W172: =Noblanks(J171:J668) -> 
W173: =Noblanks(J172:J669) -> 
W174: =Noblanks(J173:J670) -> 
W175: =Noblanks(J174:J671) -> 
W176: =Noblanks(J175:J672) -> 
W177: =Noblanks(J176:J673) -> 
W178: =Noblanks(J177:J674) -> 
W179: =Noblanks(J178:J675) -> 
W180: =Noblanks(J179:J676) -> 
W181: =Noblanks(J180:J677) -> 
W182: =Noblanks(J181:J678) -> 
W183: =Noblanks(J182:J679) -> 
W184: =Noblanks(J183:J680) -> 
W185: =Noblanks(J184:J681) -> 
W186: =Noblanks(J185:J682) -> 
W187: =Noblanks(J186:J683) -> 
W188: =Noblanks(J187:J684) -> 
W189: =Noblanks(J188:J685) -> 
W190: =Noblanks(J189:J686) -> 
W191: =Noblanks(J190:J687) -> 
W192: =Noblanks(J191:J688) -> 
W193: =Noblanks(J192:J689) -> 
W194: =Noblanks(J193:J690) -> 
W195: =Noblanks(J194:J691) -> 
W196: =Noblanks(J195:J692) -> 
W197: =Noblanks(J196:J693) -> 
W198: =Noblanks(J197:J694) -> 

Sheet 16-07-2019
A1: Other | B1: App. Date | C1: Name | D1: Surname | E1: Pasaport No. | F1: Date of birth | G1: Note of stutus | H1: Price $ | I1: Paid $ | J1: Route | K1: Unpaid $ | M1: =MID(CELL("filename"),FIND("]",CELL("filename"))+1,LEN(CELL("filename"))-FIND("]",CELL("filename"))) -> Main of June | O1: TOTAL
J3: fffff | K3: 100 | M3: DONE | O3: Total amount | S3: Route | T3: Total Unpaid | W3: =Noblanks(J2:J499) -> fffff | X3: Route | Y3: Count of Route
M4: CANCELLED | O4: =SUM(H2:H69) -> 170 | S4: =IF(ISERROR(INDEX($W$3:$W$70,MATCH(0,COUNTIF($S$3:S3,$W$3:$W$69),0))),"",INDEX($W$3:$W$69,MATCH(0,COUNTIF($S$3:S3,$W$3:$W$69),0))) -> fffff | T4: =IF(S4<>"",SUMPRODUCT(--($J$2:$J$69=S4),$K$2:$K$69),"") -> 100 | W4: =Noblanks(U6:U499) -> fffff | X4: MISTAKE IN DOB | Y4: =COUNTIF(J2:J70,"MISTAKE IN DOB") -> 0
B5: 1900-01-10 | H5: 170 | I5: 150 | M5: REFUSED | S5: =IF(ISERROR(INDEX($W$3:$W$70,MATCH(0,COUNTIF($S$3:S4,$W$3:$W$69),0))),"",INDEX($W$3:$W$69,MATCH(0,COUNTIF($S$3:S4,$W$3:$W$69),0))) ->  | T5: =IF(S5<>"",SUMPRODUCT(--($J$2:$J$69=S5),$K$2:$K$69),"") ->  | W5: =Noblanks(U7:U500) -> fffff
B6: 1900-01-20 | M6: MISTAKE | O6: Total Paid | Q6: Difrent amount | S6: =IF(ISERROR(INDEX($W$3:$W$70,MATCH(0,COUNTIF($S$3:S5,$W$3:$W$69),0))),"",INDEX($W$3:$W$69,MATCH(0,COUNTIF($S$3:S5,$W$3:$W$69),0))) ->  | T6: =IF(S6<>"",SUMPRODUCT(--($J$2:$J$69=S6),$K$2:$K$69),"") ->  | U6: =IF(K2="","",J2) ->  | W6: =Noblanks(U8:U501) -> 
M7: GREEN PASS. | O7: =SUM(I2:I67) -> 150 | Q7: =O4-(O7+T23) -> -80 | S7: =IF(ISERROR(INDEX($W$3:$W$70,MATCH(0,COUNTIF($S$3:S6,$W$3:$W$69),0))),"",INDEX($W$3:$W$69,MATCH(0,COUNTIF($S$3:S6,$W$3:$W$69),0))) ->  | T7: =IF(S7<>"",SUMPRODUCT(--($J$2:$J$69=S7),$K$2:$K$69),"") ->  | U7: fffff | W7: =Noblanks(U9:U502) -> 
S8: =IF(ISERROR(INDEX($W$3:$W$70,MATCH(0,COUNTIF($S$3:S7,$W$3:$W$69),0))),"",INDEX($W$3:$W$69,MATCH(0,COUNTIF($S$3:S7,$W$3:$W$69),0))) ->  | T8: =IF(S8<>"",SUMPRODUCT(--($J$2:$J$69=S8),$K$2:$K$69),"") ->  | W8: =Noblanks(U10:U503) -> 
O9: Total UnPaid | Q9: =COUNT(B:B) -> 2 | S9: =IF(ISERROR(INDEX($W$3:$W$70,MATCH(0,COUNTIF($S$3:S8,$W$3:$W$69),0))),"",INDEX($W$3:$W$69,MATCH(0,COUNTIF($S$3:S8,$W$3:$W$69),0))) ->  | T9: =IF(S9<>"",SUMPRODUCT(--($J$2:$J$69=S9),$K$2:$K$69),"") ->  | W9: =Noblanks(U11:U504) -> 
O10: =SUM(T4:T15) -> 100 | S10: =IF(ISERROR(INDEX($W$3:$W$70,MATCH(0,COUNTIF($S$3:S9,$W$3:$W$69),0))),"",INDEX($W$3:$W$69,MATCH(0,COUNTIF($S$3:S9,$W$3:$W$69),0))) ->  | T10: =IF(S10<>"",SUMPRODUCT(--($J$2:$J$69=S10),$K$2:$K$69),"") ->  | W10: =Noblanks(U12:U505) -> 
S11: =IF(ISERROR(INDEX($W$3:$W$70,MATCH(0,COUNTIF($S$3:S10,$W$3:$W$69),0))),"",INDEX($W$3:$W$69,MATCH(0,COUNTIF($S$3:S10,$W$3:$W$69),0))) ->  | T11: =IF(S11<>"",SUMPRODUCT(--($J$2:$J$69=S11),$K$2:$K$69),"") ->  | W11: =Noblanks(U13:U506) -> 
S12: =IF(ISERROR(INDEX($W$3:$W$70,MATCH(0,COUNTIF($S$3:S11,$W$3:$W$69),0))),"",INDEX($W$3:$W$69,MATCH(0,COUNTIF($S$3:S11,$W$3:$W$69),0))) ->  | T12: =IF(S12<>"",SUMPRODUCT(--($J$2:$J$69=S12),$K$2:$K$69),"") ->  | W12: =Noblanks(U14:U507) -> 
S13: =IF(ISERROR(INDEX($W$3:$W$70,MATCH(0,COUNTIF($S$3:S12,$W$3:$W$69),0))),"",INDEX($W$3:$W$69,MATCH(0,COUNTIF($S$3:S12,$W$3:$W$69),0))) ->  | W13: =Noblanks(U15:U508) -> 
S14: =IF(ISERROR(INDEX($W$3:$W$70,MATCH(0,COUNTIF($S$3:S13,$W$3:$W$69),0))),"",INDEX($W$3:$W$69,MATCH(0,COUNTIF($S$3:S13,$W$3:$W$69),0))) ->  | W14: =Noblanks(U16:U509) -> 
S15: =IF(ISERROR(INDEX($W$3:$W$70,MATCH(0,COUNTIF($S$3:S14,$W$3:$W$69),0))),"",INDEX($W$3:$W$69,MATCH(0,COUNTIF($S$3:S14,$W$3:$W$69),0))) ->  | W15: =Noblanks(U17:U510) -> 
S16: =IF(ISERROR(INDEX($W$3:$W$70,MATCH(0,COUNTIF($S$3:S15,$W$3:$W$69),0))),"",INDEX($W$3:$W$69,MATCH(0,COUNTIF($S$3:S15,$W$3:$W$69),0))) ->  | V16: =Noblanks(X13:X15) ->  | W16: =Noblanks(U18:U511) -> 
S17: =IF(ISERROR(INDEX($W$3:$W$70,MATCH(0,COUNTIF($S$3:S16,$W$3:$W$69),0))),"",INDEX($W$3:$W$69,MATCH(0,COUNTIF($S$3:S16,$W$3:$W$69),0))) ->  | V17: =Noblanks(X14:X16) ->  | W17: =Noblanks(U19:U512) -> 
S18: =IF(ISERROR(INDEX($W$3:$W$70,MATCH(0,COUNTIF($S$3:S17,$W$3:$W$69),0))),"",INDEX($W$3:$W$69,MATCH(0,COUNTIF($S$3:S17,$W$3:$W$69),0))) ->  | W18: =Noblanks(U20:U513) -> 
S19: =IF(ISERROR(INDEX($W$3:$W$70,MATCH(0,COUNTIF($S$3:S18,$W$3:$W$69),0))),"",INDEX($W$3:$W$69,MATCH(0,COUNTIF($S$3:S18,$W$3:$W$69),0))) ->  | W19: =Noblanks(U21:U514) -> 
S20: =IF(ISERROR(INDEX($W$3:$W$70,MATCH(0,COUNTIF($S$3:S19,$W$3:$W$69),0))),"",INDEX($W$3:$W$69,MATCH(0,COUNTIF($S$3:S19,$W$3:$W$69),0))) ->  | W20: =Noblanks(U22:U515) -> 
S21: =IF(ISERROR(INDEX($W$3:$W$70,MATCH(0,COUNTIF($S$3:S20,$W$3:$W$69),0))),"",INDEX($W$3:$W$69,MATCH(0,COUNTIF($S$3:S20,$W$3:$W$69),0))) ->  | W21: =Noblanks(U23:U516) -> 
S22: =IF(ISERROR(INDEX($W$3:$W$70,MATCH(0,COUNTIF($S$3:S21,$W$3:$W$69),0))),"",INDEX($W$3:$W$69,MATCH(0,COUNTIF($S$3:S21,$W$3:$W$69),0))) ->  | W22: =Noblanks(U24:U517) ->  | Y22: =IFERROR(INDEX($J$2:$J$499,SMALL(IF($J$2:$J$499<>"",ROW($J$1:$J$499)-ROW($J$2)+1,""),ROWS($Y$21:Y22))),"") -> 
S23: Total | T23: =SUM(T4:T22) -> 100 | W23: =Noblanks(U25:U518) ->  | Y23: =IFERROR(INDEX($J$2:$J$499,SMALL(IF($J$2:$J$499<>"",ROW($J$1:$J$499)-ROW($J$2)+1,""),ROWS($Y$21:Y23))),"") -> 
W24: =Noblanks(U26:U519) ->  | Y24: =IFERROR(INDEX($J$2:$J$499,SMALL(IF($J$2:$J$499<>"",ROW($J$1:$J$499)-ROW($J$2)+1,""),ROWS($Y$21:Y24))),"") -> 
W25: =Noblanks(U27:U520) ->  | Y25: =IFERROR(INDEX($J$2:$J$499,SMALL(IF($J$2:$J$499<>"",ROW($J$1:$J$499)-ROW($J$2)+1,""),ROWS($Y$21:Y25))),"") -> 
W26: =Noblanks(U28:U521) -> 
W27: =Noblanks(U29:U522) -> 
W28: =Noblanks(U30:U523) -> 
W29: =Noblanks(U31:U524) -> 
W30: =Noblanks(U32:U525) -> 
W31: =Noblanks(U33:U526) -> 
W32: =Noblanks(U34:U527) -> 
W33: =Noblanks(U35:U528) -> 
W34: =Noblanks(U36:U529) -> 
W35: =Noblanks(U37:U530) -> 
W36: =Noblanks(U38:U531) -> 
W37: =Noblanks(U39:U532) -> 
W38: =Noblanks(U40:U533) -> 
W39: =Noblanks(U41:U534) -> 
W40: =Noblanks(U42:U535) -> 
W41: =Noblanks(U43:U536) -> 
W42: =Noblanks(U44:U537) -> 
W43: =Noblanks(U45:U538) -> 
W44: =Noblanks(U46:U539) -> 
W45: =Noblanks(U47:U540) -> 
W46: =Noblanks(U48:U541) -> 
W47: =Noblanks(U49:U542) -> 
W48: =Noblanks(U50:U543) -> 
W49: =Noblanks(U51:U544) -> 
W50: =Noblanks(U52:U545) -> 
W51: =Noblanks(U53:U546) -> 
W52: =Noblanks(U54:U547) -> 
W53: =Noblanks(U55:U548) -> 
W54: =Noblanks(U56:U549) -> 
W55: =Noblanks(U57:U550) -> 
W56: =Noblanks(U58:U551) -> 
W57: =Noblanks(U59:U552) -> 
W58: =Noblanks(U60:U553) -> 
W59: =Noblanks(U61:U554) -> 
W60: =Noblanks(U62:U555) -> 
W61: =Noblanks(U63:U556) -> 
W62: =Noblanks(U64:U557) -> 
W63: =Noblanks(U65:U558) -> 
W64: =Noblanks(U66:U559) -> 
W65: =Noblanks(U67:U560) -> 
W66: =Noblanks(U68:U561) -> 
W67: =Noblanks(U69:U562) -> 
W68: =Noblanks(U70:U563) -> 
W69: =Noblanks(U71:U564) -> 
U70: =IF(K66="","",J66) ->  | W70: =Noblanks(U72:U565) -> 
W71: =Noblanks(U73:U566) -> 
W72: =Noblanks(U74:U567) -> 
W73: =Noblanks(U75:U568) -> 
W74: =Noblanks(U76:U569) -> 
W75: =Noblanks(U77:U570) -> 
W76: =Noblanks(U78:U571) -> 
W77: =Noblanks(U79:U572) -> 
W78: =Noblanks(U80:U573) -> 
W79: =Noblanks(U81:U574) -> 
W80: =Noblanks(U82:U575) -> 
W81: =Noblanks(U83:U576) -> 
W82: =Noblanks(U84:U577) -> 
W83: =Noblanks(U85:U578) -> 
W84: =Noblanks(U86:U579) -> 
W85: =Noblanks(U87:U580) -> 
W86: =Noblanks(U88:U581) -> 
W87: =Noblanks(J86:J583) -> 
W88: =Noblanks(J87:J584) -> 
W89: =Noblanks(J88:J585) -> 
W90: =Noblanks(J89:J586) -> 
W91: =Noblanks(J90:J587) -> 
W92: =Noblanks(J91:J588) -> 
W93: =Noblanks(J92:J589) -> 
W94: =Noblanks(J93:J590) -> 
W95: =Noblanks(J94:J591) -> 
W96: =Noblanks(J95:J592) -> 
W97: =Noblanks(J96:J593) -> 
W98: =Noblanks(J97:J594) -> 
W99: =Noblanks(J98:J595) -> 
W100: =Noblanks(J99:J596) -> 
W101: =Noblanks(J100:J597) -> 
W102: =Noblanks(J101:J598) -> 
W103: =Noblanks(J102:J599) -> 
W104: =Noblanks(J103:J600) -> 
W105: =Noblanks(J104:J601) -> 
W106: =Noblanks(J105:J602) -> 
W107: =Noblanks(J106:J603) -> 
W108: =Noblanks(J107:J604) -> 
W109: =Noblanks(J108:J605) -> 
W110: =Noblanks(J109:J606) -> 
W111: =Noblanks(J110:J607) -> 
W112: =Noblanks(J111:J608) -> 
W113: =Noblanks(J112:J609) -> 
W114: =Noblanks(J113:J610) -> 
W115: =Noblanks(J114:J611) -> 
W116: =Noblanks(J115:J612) -> 
W117: =Noblanks(J116:J613) -> 
W118: =Noblanks(J117:J614) -> 
W119: =Noblanks(J118:J615) -> 
W120: =Noblanks(J119:J616) -> 
W121: =Noblanks(J120:J617) -> 
W122: =Noblanks(J121:J618) -> 
W123: =Noblanks(J122:J619) -> 
W124: =Noblanks(J123:J620) -> 
W125: =Noblanks(J124:J621) -> 
W126: =Noblanks(J125:J622) -> 
W127: =Noblanks(J126:J623) -> 
W128: =Noblanks(J127:J624) -> 
W129: =Noblanks(J128:J625) -> 
W130: =Noblanks(J129:J626) -> 
W131: =Noblanks(J130:J627) -> 
W132: =Noblanks(J131:J628) -> 
W133: =Noblanks(J132:J629) -> 
W134: =Noblanks(J133:J630) -> 
W135: =Noblanks(J134:J631) -> 
W136: =Noblanks(J135:J632) -> 
W137: =Noblanks(J136:J633) -> 
W138: =Noblanks(J137:J634) -> 
W139: =Noblanks(J138:J635) -> 
W140: =Noblanks(J139:J636) -> 
W141: =Noblanks(J140:J637) -> 
W142: =Noblanks(J141:J638) -> 
W143: =Noblanks(J142:J639) -> 
W144: =Noblanks(J143:J640) -> 
W145: =Noblanks(J144:J641) -> 
W146: =Noblanks(J145:J642) -> 
W147: =Noblanks(J146:J643) -> 
W148: =Noblanks(J147:J644) -> 
W149: =Noblanks(J148:J645) -> 
W150: =Noblanks(J149:J646) -> 
W151: =Noblanks(J150:J647) -> 
W152: =Noblanks(J151:J648) -> 
W153: =Noblanks(J152:J649) -> 
W154: =Noblanks(J153:J650) -> 
W155: =Noblanks(J154:J651) -> 
W156: =Noblanks(J155:J652) -> 
W157: =Noblanks(J156:J653) -> 
W158: =Noblanks(J157:J654) -> 
W159: =Noblanks(J158:J655) -> 
W160: =Noblanks(J159:J656) -> 
W161: =Noblanks(J160:J657) -> 
W162: =Noblanks(J161:J658) -> 
W163: =Noblanks(J162:J659) -> 
W164: =Noblanks(J163:J660) -> 
W165: =Noblanks(J164:J661) -> 
W166: =Noblanks(J165:J662) -> 
W167: =Noblanks(J166:J663) -> 
W168: =Noblanks(J167:J664) -> 
W169: =Noblanks(J168:J665) -> 
W170: =Noblanks(J169:J666) -> 
W171: =Noblanks(J170:J667) -> 
W172: =Noblanks(J171:J668) -> 
W173: =Noblanks(J172:J669) -> 
W174: =Noblanks(J173:J670) -> 
W175: =Noblanks(J174:J671) -> 
W176: =Noblanks(J175:J672) -> 
W177: =Noblanks(J176:J673) -> 
W178: =Noblanks(J177:J674) -> 
W179: =Noblanks(J178:J675) -> 
W180: =Noblanks(J179:J676) -> 
W181: =Noblanks(J180:J677) -> 
W182: =Noblanks(J181:J678) -> 
W183: =Noblanks(J182:J679) -> 
W184: =Noblanks(J183:J680) -> 
W185: =Noblanks(J184:J681) -> 
W186: =Noblanks(J185:J682) -> 
W187: =Noblanks(J186:J683) -> 
W188: =Noblanks(J187:J684) -> 
W189: =Noblanks(J188:J685) -> 
W190: =Noblanks(J189:J686) -> 
W191: =Noblanks(J190:J687) -> 
W192: =Noblanks(J191:J688) -> 
W193: =Noblanks(J192:J689) -> 
W194: =Noblanks(J193:J690) -> 
W195: =Noblanks(J194:J691) -> 
W196: =Noblanks(J195:J692) -> 
W197: =Noblanks(J196:J693) -> 
W198: =Noblanks(J197:J694) -> 
